{"text_format":"1","workbook":"xlsx","n_sheets":2,"sheets":["export_orders_2023.02.26_8-59-1"," master data"],"not_rendered":{"charts":0,"images":0,"macros":1,"external_links":0,"defined_names":0,"comments":0,"pivot_tables":0},"unopened":[],"bounds":{"document_bytes":16777216,"sheet_cells":100000,"rows_first":2000,"rows_last":500,"rows_between":2000,"halvings":0,"cell_chars":16384,"cell_head_chars":4096},"cells_cut":0,"cells_raw":0,"read":"whole","date_system":"1900"}

{"sheet":"export_orders_2023.02.26_8-59-1","index":0,"n_rows":1011,"n_cols":11,"rows_kept":1011,"cut":false,"hidden":false,"merged":[]}
["Product Reference","Product Name","Product Quantity","Order ID",null,null,null,"Product Name"]
[null,"10 x Grafting Package",1,"2344",null,null,null,"10 x Grafting Package",{"$f":"SUMIF(B2:B2011,H2,C2:C2011)","v":7}]
[null,"10 x Grafting Package",1,"2358",null,null,null,"100 x Grafting Package",{"$f":"SUMIF(B3:B2012,H3,C3:C2012)","v":2}]
[null,"10 x Grafting Package",1,"2398",null,null,null,"50 x Grafting Package",1]
[null,"10 x Grafting Package",1,"2401",null,null,null,"Apple - Acme - Scion",3]
[null,"10 x Grafting Package",1,"2406",null,null,null,"Apple - Adams Pearmain - Barerooted",1]
[null,"10 x Grafting Package",1,"2420",null,null,null,"Apple - Adams Pearmain - Scion",10]
[null,"10 x Grafting Package",1,"2427",null,null,null,"Apple - All Doer - Scion",2]
[null,"100 x Grafting Package",1,"2387",null,null,null,"Apple - Amanda - Scion",2]
[null,"100 x Grafting Package",1,"2451",null,null,null,"Apple - American Mother - Scion",1]
[null,"50 x Grafting Package",1,"2323",null,null,null,"Apple - Annie Elizabeth - Scion",1]
["Malus 1705-000","Apple - Acme - Scion",2,"2357",null,null,null,"Apple - Arap Kizi 'Arabian Girl' - Scion",2]
["Malus 1705-000","Apple - Acme - Scion",1,"2399",null,null,null,"Apple - Aroma - Scion",4]
["Malus 8684","Apple - Adams Pearmain - Barerooted",1,"2431",null,null,null,"Apple - Arthur Turner - Scion",5]
["Malus 833-J18","Apple - Adams Pearmain - Scion",1,"2329",null,null,null,"Apple - Ashmeads Kernel - Barerooted",1,null,"Copy 4 columns of data from generated csv file"]
["Malus 833-J18","Apple - Adams Pearmain - Scion",1,"2334",null,null,null,"Apple - Ashmeads Kernel - Scion",6,null,"Clear contents of columns H and I"]
["Malus 833-J18","Apple - Adams Pearmain - Scion",1,"2354",null,null,null,"Apple - Autumn Arctic - Scion",3,null,"Press button to generate all products sold and totalized and sorted by product name"]
["Malus 833-J18","Apple - Adams Pearmain - Scion",1,"2356",null,null,null,"Apple - Bakers Delicious - Scion",8]
["Malus 833-J18","Apple - Adams Pearmain - Scion",1,"2384",null,null,null,"Apple - Bakran - Scion",30]
["Malus 833-J18","Apple - Adams Pearmain - Scion",1,"2416",null,null,null,"Apple - Bardsey - Scion",7]
["Malus 833-J18","Apple - Adams Pearmain - Scion",1,"2417",null,null,null,"Apple - Barnack Orange - Scion",6]
["Malus 833-J18","Apple - Adams Pearmain - Scion",1,"2423",null,null,null,"Apple - Batul - Scion",5]
["Malus 833-J18","Apple - Adams Pearmain - Scion",2,"2428",null,null,null,"Apple - Beauty of Bath - Scion",7]
["Malus 3550-I53","Apple - All Doer - Scion",1,"2399",null,null,null,"Apple - Bec d Oie - Scion",1]
["Malus 3550-I53","Apple - All Doer - Scion",1,"2430",null,null,null,"Apple - Benoni - Scion",2]
["Malus 5026-HL29","Apple - Amanda - Scion",1,"2356",null,null,null,"Apple - Ben's Red - Scion",2]
["Malus 5026-HL29","Apple - Amanda - Scion",1,"2467",null,null,null,"Apple - Blood Royal - Scion",4]
["Malus 1613-J15","Apple - American Mother - Scion",1,"2462",null,null,null,"Apple - Bloody Ploughman - Scion",20]
["Malus 3750-HL11","Apple - Annie Elizabeth - Scion",1,"2363",null,null,null,"Apple - Braeburn - Scion",6]
["Malus 4928-F69","Apple - Arap Kizi 'Arabian Girl' - Scion",1,"2350",null,null,null,"Apple - Bramley - Scion",5]
["Malus 4928-F69","Apple - Arap Kizi 'Arabian Girl' - Scion",1,"2399",null,null,null,"Apple - Bramley Clone 20 - Scion",2]
["Malus 2962-U10","Apple - Aroma - Scion",1,"2350",null,null,null,"Apple - Breakwells Seedling - Scion",4]
["Malus 2962-U10","Apple - Aroma - Scion",2,"2357",null,null,null,"Apple - Bundle of 10 Random Varieties named - Scion",1]
["Malus 2962-U10","Apple - Aroma - Scion",1,"2363",null,null,null,"Apple - Bundle of 10 Random Varieties unnamed - Scion",2]
["Malus 800-D09","Apple - Arthur Turner - Scion",1,"2329",null,null,null,"Apple - Bundle of 5 Random Varieties named - Scion",2]
["Malus 800-D09","Apple - Arthur Turner - Scion",1,"2336",null,null,null,"Apple - Captain Broad - Scion",2]
["Malus 800-D09","Apple - Arthur Turner - Scion",1,"2337",null,null,null,"Apple - Charden - Scion",4]
["Malus 800-D09","Apple - Arthur Turner - Scion",1,"2381",null,null,null,"Apple - Charles Ross - Scion",7]
["Malus 800-D09","Apple - Arthur Turner - Scion",1,"2473",null,null,null,"Apple - Christmas Pearmain - Scion",2]
["Malus 8773","Apple - Ashmeads Kernel - Barerooted",1,"2434",null,null,null,"Apple - Cidor - Scion",5]
["Malus 3616-U29","Apple - Ashmeads Kernel - Scion",1,"2323",null,null,null,"Apple - Cigany Alma - Scion",5]
["Malus 3616-U29","Apple - Ashmeads Kernel - Scion",1,"2325",null,null,null,"Apple - Coeur de Boeuf - Scion",2]
["Malus 3616-U29","Apple - Ashmeads Kernel - Scion",1,"2360",null,null,null,"Apple - Cornish Pine - Scion",4]
["Malus 3616-U29","Apple - Ashmeads Kernel - Scion",1,"2417",null,null,null,"Apple - Court of Wick - Scion",2]
["Malus 3616-U29","Apple - Ashmeads Kernel - Scion",1,"2464",null,null,null,"Apple - Cox's Pomona - Scion",6]
["Malus 3616-U29","Apple - Ashmeads Kernel - Scion",1,"2479",null,null,null,"Apple - Crimson King - Scion",5]
["Malus 5641-X30","Apple - Autumn Arctic - Scion",1,"2363",null,null,null,"Apple - D'arcy Spice - Scion",6]
["Malus 5641-X30","Apple - Autumn Arctic - Scion",1,"2368",null,null,null,"Apple - Daru Alma - Scion",1]
["Malus 5641-X30","Apple - Autumn Arctic - Scion",1,"2399",null,null,null,"Apple - Discovery - Scion",5]
["Malus 1072-L11","Apple - Bakers Delicious - Scion",1,"2323",null,null,null,"Apple - Douce Coet Ligne - Scion",5]
["Malus 1072-L11","Apple - Bakers Delicious - Scion",1,"2354",null,null,null,"Apple - Douce Moen - Scion",1]
["Malus 1072-L11","Apple - Bakers Delicious - Scion",1,"2356",null,null,null,"Apple - Dumelows Seedling - Scion",4]
["Malus 1072-L11","Apple - Bakers Delicious - Scion",1,"2416",null,null,null,"Apple - Ellisons Orange - Scion",7]
["Malus 1072-L11","Apple - Bakers Delicious - Scion",1,"2430",null,null,null,"Apple - Elstar - Scion",3]
["Malus 1072-L11","Apple - Bakers Delicious - Scion",1,"2443",null,null,null,"Apple - First and Last - Scion",2]
["Malus 1072-L11","Apple - Bakers Delicious - Scion",1,"2459",null,null,null,"Apple - Frederick - Scion",20]
["Malus 1072-L11","Apple - Bakers Delicious - Scion",1,"2486",null,null,null,"Apple - Frequin Tardive de La Sarthe - Scion",4]
["Malus 4900-W7","Apple - Bakran - Scion",1,"2327",null,null,null,"Apple - Freyburg - Scion",2]
["Malus 4900-W7","Apple - Bakran - Scion",1,"2343",null,null,null,"Apple - Fuji - Scion",6]
["Malus 4900-W7","Apple - Bakran - Scion",1,"2356",null,null,null,"Apple - Gala - Scion",2]
["Malus 4900-W7","Apple - Bakran - Scion",1,"2358",null,null,null,"Apple - Gloria Mundi - Scion",1]
["Malus 4900-W7","Apple - Bakran - Scion",1,"2365",null,null,null,"Apple - Gloucestershire Costard - Scion",1]
["Malus 4900-W7","Apple - Bakran - Scion",1,"2374",null,null,null,"Apple - Golden Delicious - Scion",1]
["Malus 4900-W7","Apple - Bakran - Scion",4,"2387",null,null,null,"Apple - Golden Glow - Scion",1]
["Malus 4900-W7","Apple - Bakran - Scion",2,"2392",null,null,null,"Apple - Golden Li - Scion",1]
["Malus 4900-W7","Apple - Bakran - Scion",1,"2399",null,null,null,"Apple - Golden Russet of Western New York - Scion",8]
["Malus 4900-W7","Apple - Bakran - Scion",1,"2418",null,null,null,"Apple - Granny Smith - Scion",{"$f":"SUMIF(B67:B2076,H67,C67:C2076)","v":3}]
["Malus 4900-W7","Apple - Bakran - Scion",1,"2428",null,null,null,"Apple - Grasten Sabygard - Scion",4]
["Malus 4900-W7","Apple - Bakran - Scion",1,"2438",null,null,null,"Apple - Greensleeves - Scion",2]
["Malus 4900-W7","Apple - Bakran - Scion",5,"2440",null,null,null,"Apple - Hagloe Crab - Scion",2]
["Malus 4900-W7","Apple - Bakran - Scion",2,"2447",null,null,null,"Apple - Hans Wassard - Scion",2]
["Malus 4900-W7","Apple - Bakran - Scion",1,"2455",null,null,null,"Apple - Harry Masters Jersey - Scion",3]
["Malus 4900-W7","Apple - Bakran - Scion",1,"2456",null,null,null,"Apple - Herefordshire Redstreak - Scion",10]
["Malus 4900-W7","Apple - Bakran - Scion",1,"2462",null,null,null,"Apple - Hunthouse Pippin - Scion",3]
["Malus 4900-W7","Apple - Bakran - Scion",1,"2467",null,null,null,"Apple - Improved Dove - Scion",2]
["Malus 4900-W7","Apple - Bakran - Scion",3,"2470",null,null,null,"Apple - Ingalls Red - Scion",6]
["Malus 2818-Q09","Apple - Bardsey - Scion",1,"2380",null,null,null,"Apple - Irish Peach - Scion",5]
["Malus 2818-Q09","Apple - Bardsey - Scion",4,"2386",null,null,null,"Apple - Isaac Newton - Scion",2]
["Malus 2818-Q09","Apple - Bardsey - Scion",1,"2464",null,null,null,"Apple - James Grieve - Scion",4]
["Malus 2818-Q09","Apple - Bardsey - Scion",1,"2485",null,null,null,"Apple - Jaszvadoka - Scion",2]
["Malus 3749-HL07","Apple - Barnack Orange - Scion",1,"2326",null,null,null,"Apple - Johnny Andrews - Scion",3]
["Malus 3749-HL07","Apple - Barnack Orange - Scion",1,"2343",null,null,null,"Apple - Jonagold - Scion",4]
["Malus 3749-HL07","Apple - Barnack Orange - Scion",1,"2350",null,null,null,"Apple - Karmijn de Sonnaville - Scion",3]
["Malus 3749-HL07","Apple - Barnack Orange - Scion",1,"2399",null,null,null,"Apple - Katy / Katja - Scion",4]
["Malus 3749-HL07","Apple - Barnack Orange - Scion",1,"2464",null,null,null,"Apple - Kermerrien - Scion",1]
["Malus 3749-HL07","Apple - Barnack Orange - Scion",1,"2485",null,null,null,"Apple - King Byrd - Scion",4]
["Malus 5328-W25","Apple - Batul - Scion",1,"2336",null,null,null,"Apple - King Coffee - Scion",6]
["Malus 5328-W25","Apple - Batul - Scion",1,"2337",null,null,null,"Apple - King David - Scion",12]
["Malus 5328-W25","Apple - Batul - Scion",1,"2456",null,null,null,"Apple - Kingston Black - Scion",8]
["Malus 5328-W25","Apple - Batul - Scion",1,"2462",null,null,null,"Apple - Kirton Fair - Scion",2]
["Malus 5328-W25","Apple - Batul - Scion",1,"2473",null,null,null,"Apple - Knotted Kernel - Scion",2]
["Malus 1704-O17","Apple - Beauty of Bath - Scion",1,"2323",null,null,null,"Apple - Ladys Finger - Scion",1]
["Malus 1704-O17","Apple - Beauty of Bath - Scion",1,"2329",null,null,null,"Apple - Lanes Prince Albert - Scion",4]
["Malus 1704-O17","Apple - Beauty of Bath - Scion",1,"2381",null,null,null,"Apple - Laxton Epicure - Scion",4]
["Malus 1704-O17","Apple - Beauty of Bath - Scion",1,"2434",null,null,null,"Apple - Laxton Fortune - Scion",3]
["Malus 1704-O17","Apple - Beauty of Bath - Scion",1,"2456",null,null,null,"Apple - Longkeeper - Scion",3]
["Malus 1704-O17","Apple - Beauty of Bath - Scion",2,"2473",null,null,null,"Apple - Marriage Maker - Scion",5]
["Malus 1746-P08","Apple - Bec d Oie - Scion",1,"2363",null,null,null,"Apple - Martins Custard - Scion",2]
["Malus 1718-P04","Apple - Benoni - Scion",1,"2365",null,null,null,"Apple - McIntosh- Scion",3]
["Malus 1718-P04","Apple - Benoni - Scion",1,"2399",null,null,null,"Apple - Merton Knave - Scion",2]
["Malus 1021-Q38","Apple - Ben's Red - Scion",1,"2323",null,null,null,"Apple - Merton Russet - Scion",5]
["Malus 1021-Q38","Apple - Ben's Red - Scion",1,"2467",null,null,null,"Apple - Monmouth Beauty (Cissy) - Scion",4]
["Malus 1707-O21","Apple - Blood Royal - Scion",1,"2399",null,null,null,"Apple - Mosses Seedling - Scion",1]
["Malus 1707-O21","Apple - Blood Royal - Scion",1,"2459",null,null,null,"Apple - Nutmeg Pippin - Scion",2]
["Malus 1707-O21","Apple - Blood Royal - Scion",1,"2482",null,null,null,"Apple - Orleans Reinette - Scion",3]
["Malus 1707-O21","Apple - Blood Royal - Scion",1,"2485",null,null,null,"Apple - Pear Apple - Scion",2]
["Malus 2285-BW32","Apple - Bloody Ploughman - Scion",1,"2323",null,null,null,"Apple - Pigeon de Jerusalem - Scion",4]
["Malus 2285-BW32","Apple - Bloody Ploughman - Scion",1,"2343",null,null,null,"Apple - Pigs Snout - Scion",3]
["Malus 2285-BW32","Apple - Bloody Ploughman - Scion",2,"2357",null,null,null,"Apple - Pink Parfait - Scion",2]
["Malus 2285-BW32","Apple - Bloody Ploughman - Scion",1,"2374",null,null,null,"Apple - Pink Pearl - Barerooted",1]
["Malus 2285-BW32","Apple - Bloody Ploughman - Scion",1,"2384",null,null,null,"Apple - Pitmaston Pineapple - Scion",10]
["Malus 2285-BW32","Apple - Bloody Ploughman - Scion",2,"2392",null,null,null,"Apple - Purple Passion - Scion",6]
["Malus 2285-BW32","Apple - Bloody Ploughman - Scion",1,"2416",null,null,null,"Apple - Rajka - Scion",4]
["Malus 2285-BW32","Apple - Bloody Ploughman - Scion",1,"2418",null,null,null,"Apple - Rambour d Hiver - Scion",1]
["Malus 2285-BW32","Apple - Bloody Ploughman - Scion",2,"2428",null,null,null,"Apple - Rattler - Scion",6]
["Malus 2285-BW32","Apple - Bloody Ploughman - Scion",1,"2438",null,null,null,"Apple - Red Chief - Scion",4]
["Malus 2285-BW32","Apple - Bloody Ploughman - Scion",1,"2456",null,null,null,"Apple - Redfield - Scion",2]
["Malus 2285-BW32","Apple - Bloody Ploughman - Scion",1,"2464",null,null,null,"Apple - Reine des Pommes - Scion",2]
["Malus 2285-BW32","Apple - Bloody Ploughman - Scion",1,"2467",null,null,null,"Apple - Reinette Ananas - Scion",10]
["Malus 2285-BW32","Apple - Bloody Ploughman - Scion",3,"2470",null,null,null,"Apple - Reinette de Brucbrucks - Scion",1]
["Malus 2285-BW32","Apple - Bloody Ploughman - Scion",1,"2485",null,null,null,"Apple - Reinette grise du Canada - Scion",5]
["Malus 1235-J39","Apple - Braeburn - Scion",1,"2374",null,null,null,"Apple - Ribston Pippin - Scion",3]
["Malus 1235-J39","Apple - Braeburn - Scion",1,"2459",null,null,null,"Apple - Rosalisa - Rootstock",1]
["Malus 1235-J39","Apple - Braeburn - Scion",1,"2467",null,null,null,"Apple - Ross Nonpareil - Scion",1]
["Malus 1235-J39","Apple - Braeburn - Scion",2,"2479",null,null,null,"Apple - Rotor Eiserapfel - Scion",1]
["Malus 1235-J39","Apple - Braeburn - Scion",1,"2482",null,null,null,"Apple - Rubin - Scion",5]
["Malus 792-D1","Apple - Bramley - Scion",1,"2329",null,null,null,"Apple - Rubinola - Scion",4]
["Malus 792-D1","Apple - Bramley - Scion",1,"2336",null,null,null,"Apple - Saturn - Scion",4]
["Malus 792-D1","Apple - Bramley - Scion",1,"2337",null,null,null,"Apple - Shizuka - Scion",3]
["Malus 792-D1","Apple - Bramley - Scion",1,"2374",null,null,null,"Apple - Snow (Fameuse) - Scion",6]
["Malus 792-D1","Apple - Bramley - Scion",1,"2418",null,null,null,"Apple - Somerset Redstreak - Scion",{"$f":"SUMIF(B131:B2140,H131,C131:C2140)","v":5}]
["Malus 1086-J28","Apple - Bramley Clone 20 - Scion",1,"2351",null,null,null,"Apple - Sops in Wine - Scion",11]
["Malus 1086-J28","Apple - Bramley Clone 20 - Scion",1,"2365",null,null,null,"Apple - Spalord - Scion",2]
["Malus 5021-HL37","Apple - Breakwells Seedling - Scion",1,"2343",null,null,null,"Apple - Spartan - Scion",4]
["Malus 5021-HL37","Apple - Breakwells Seedling - Scion",2,"2392",null,null,null,"Apple - St Edmunds Russet - Scion",10]
["Malus 5021-HL37","Apple - Breakwells Seedling - Scion",1,"2426",null,null,null,"Apple - Stembridge Cluster - Scion",2]
["Malus","Apple - Bundle of 10 Random Varieties named - Scion",1,"2429",null,null,null,"Apple - Sturmer Pippin - Scion",2]
["Malus","Apple - Bundle of 10 Random Varieties unnamed - Scion",2,"2396",null,null,null,"Apple - Sunset - Scion",10]
["Malus","Apple - Bundle of 5 Random Varieties named - Scion",1,"2344",null,null,null,"Apple - Sweet Merlin - Scion",1]
["Malus","Apple - Bundle of 5 Random Varieties named - Scion",1,"2406",null,null,null,"Apple - Tenroy - Scion",1]
["Malus 5027-HL28","Apple - Captain Broad - Scion",2,"2434",null,null,null,"Apple - Tom Putt - Scion",1]
["Malus 5252-HL23","Apple - Charden - Scion",3,"2353",null,null,null,"Apple - Topaz - Scion",2]
["Malus 5252-HL23","Apple - Charden - Scion",1,"2456",null,null,null,"Apple - Twenty Ounce (20 ounce) - Scion",2]
["Malus 1629-O01","Apple - Charles Ross - Scion",1,"2326",null,null,null,"Apple - Valkea kuulas (White Transparent) - Scion",2]
["Malus 1629-O01","Apple - Charles Ross - Scion",2,"2357",null,null,null,"Apple - Viking - Scion",4]
["Malus 1629-O01","Apple - Charles Ross - Scion",4,"2386",null,null,null,"Apple - Whitpot Sweet - Scion",6]
["Malus 1076-L16","Apple - Christmas Pearmain - Scion",1,"2323",null,null,null,"Apple - Wickson Crab - Scion",10]
["Malus 1076-L16","Apple - Christmas Pearmain - Scion",1,"2325",null,null,null,"Apple - Winter Greening - Scion",1]
["Malus 1816-BW46","Apple - Cidor - Scion",1,"2363",null,null,null,"Apple - Worcester Pearmain - Scion",5]
["Malus 1816-BW46","Apple - Cidor - Scion",2,"2392",null,null,null,"Apple - Wyken Pippin - Scion",3]
["Malus 1816-BW46","Apple - Cidor - Scion",1,"2426",null,null,null,"Apple - Yarlington Mill - Scion",17]
["Malus 1816-BW46","Apple - Cidor - Scion",1,"2482",null,null,null,"Apple - Yellow Transparent - Scion",1]
["Malus 5264-HL20","Apple - Cigany Alma - Scion",1,"2329",null,null,null,"Apricot - Hargrand - Scion",2]
["Malus 5264-HL20","Apple - Cigany Alma - Scion",1,"2356",null,null,null,"Apricot - Moorpark - Scion",2]
["Malus 5264-HL20","Apple - Cigany Alma - Scion",1,"2365",null,null,null,"Asian Pear - Chojuro - Scion",8]
["Malus 5264-HL20","Apple - Cigany Alma - Scion",1,"2467",null,null,null,"Asian Pear - Early Shu - Scion",2]
["Malus 5264-HL20","Apple - Cigany Alma - Scion",1,"2485",null,null,null,"Asian Pear - Erdi Korai - Scion",6]
["Malus 1700-O19","Apple - Coeur de Boeuf - Scion",1,"2363",null,null,null,"Asian Pear - Hong Li - Scion",4]
["Malus 1700-O19","Apple - Coeur de Boeuf - Scion",1,"2486",null,null,null,"Asian Pear - Hosui - Scion",5]
["Malus 2806-BW23","Apple - Cornish Pine - Scion",3,"2376",null,null,null,"Asian Pear - Man Sun Gil - Scion",4]
["Malus 2806-BW23","Apple - Cornish Pine - Scion",1,"2466",null,null,null,"Asian Pear - Meigetsu - Scion",9]
["Malus 1078-J13","Apple - Court of Wick - Scion",1,"2325",null,null,null,"Asian Pear - Niitaka - Scion",1]
["Malus 1078-J13","Apple - Court of Wick - Scion",1,"2349",null,null,null,"Asian Pear - Nijisseiki - Scion",4]
["Malus 1277-O25","Apple - Cox's Pomona - Scion",1,"2326",null,null,null,"Asian Pear - Raja - Scion",7]
["Malus 1277-O25","Apple - Cox's Pomona - Scion",2,"2357",null,null,null,"Asian Pear - Shinseiki - Scion",10]
["Malus 1277-O25","Apple - Cox's Pomona - Scion",1,"2363",null,null,null,"Asian Pear - UK Li (cross) - Scion",7]
["Malus 1277-O25","Apple - Cox's Pomona - Scion",2,"2392",null,null,null,"B118 - Apple Rootstock - Bare Rooted",22]
["Malus 1454-BW81","Apple - Crimson King - Scion",2,"2400",null,null,null,"B9 (Bud9)- Apple Rootstock - Bare Rooted",20]
["Malus 1454-BW81","Apple - Crimson King - Scion",1,"2434",null,null,null,"Cherry - Belle de Mai - Scion",1]
["Malus 1454-BW81","Apple - Crimson King - Scion",1,"2464",null,null,null,"Cherry - Burlat - Scions",2]
["Malus 1454-BW81","Apple - Crimson King - Scion",1,"2467",null,null,null,"Cherry - Donissens - Scion",2]
["Malus 1073-J21","Apple - D'arcy Spice - Scion",1,"2326",null,null,null,"Cherry - Early Rivers - Scion",3]
["Malus 1073-J21","Apple - D'arcy Spice - Scion",1,"2351",null,null,null,"Cherry - géant d hedelfingen - Scion",1]
["Malus 1073-J21","Apple - D'arcy Spice - Scion",1,"2393",null,null,null,"Cherry - Giorgia - Scion",1]
["Malus 1073-J21","Apple - D'arcy Spice - Scion",1,"2443",null,null,null,"Cherry - Kordia - Scion",4]
["Malus 1073-J21","Apple - D'arcy Spice - Scion",1,"2456",null,null,null,"Cherry - Lapins - Scion",4]
["Malus 1073-J21","Apple - D'arcy Spice - Scion",1,"2473",null,null,null,"Cherry - Rainier - Scion",1]
["Malus 5266-HL19","Apple - Daru Alma - Scion",1,"2485",null,null,null,"Cherry - Stella - Scions",7]
["Malus 1612-P25","Apple - Discovery - Scion",1,"2329",null,null,null,"Cherry - Sweetheart - Scion",6]
["Malus 1612-P25","Apple - Discovery - Scion",1,"2333",null,null,null,"Cherry - Vann - Scions",6]
["Malus 1612-P25","Apple - Discovery - Scion",1,"2360",null,null,null,"Cherry - Vega - Scion",1]
["Malus 1612-P25","Apple - Discovery - Scion",1,"2404",null,null,null,"Colt - Cherry Rootstock - Bare Rooted",10]
["Malus 1612-P25","Apple - Discovery - Scion",1,"2459",null,null,null,"Colt Cherry Hardwood Cuttings x 10",1]
["Malus 5116-HL24","Apple - Douce Coet Ligne - Scion",4,"2375",null,null,null,"Damson - Shropshire Damson - Scion",4]
["Malus 5116-HL24","Apple - Douce Coet Ligne - Scion",1,"2404",null,null,null,"Fig - BG Gold - Scion",3]
["Malus 1818","Apple - Douce Moen - Scion",1,"2404",null,null,null,"Fig - Bornholms Diamond - Scion",3]
["Malus 3751-HL09","Apple - Dumelows Seedling - Scion",1,"2330",null,null,null,"Fig - Brunswick - Scion",1]
["Malus 3751-HL09","Apple - Dumelows Seedling - Scion",1,"2351",null,null,null,"Fig - Celeste - Scion",8]
["Malus 3751-HL09","Apple - Dumelows Seedling - Scion",1,"2363",null,null,null,"Fig - Cerretto - Scion",4]
["Malus 3751-HL09","Apple - Dumelows Seedling - Scion",1,"2466",null,null,null,"Fig - Cordia - Scion",2]
["Malus 5030-HL32","Apple - Ellisons Orange - Scion",1,"2329",null,null,null,"Fig - Desert King - Scion",2]
["Malus 5030-HL32","Apple - Ellisons Orange - Scion",1,"2330",null,null,null,"Fig - Grise de Tarascon - Scion",2]
["Malus 5030-HL32","Apple - Ellisons Orange - Scion",2,"2357",null,null,null,"Fig - Mary Lane - Scion",6]
["Malus 5030-HL32","Apple - Ellisons Orange - Scion",1,"2358",null,null,null,"Fig - Melanzana - Scion",2]
["Malus 5030-HL32","Apple - Ellisons Orange - Scion",1,"2393",null,null,null,"Fig - Noire de Bellone - Scion",{"$f":"SUMIF(B195:B2204,H195,C195:C2204)","v":6}]
["Malus 5030-HL32","Apple - Ellisons Orange - Scion",1,"2486",null,null,null,"Fig - Osborn Prolific - Scion",3]
["Malus 1080-L15","Apple - Elstar - Scion",1,"2363",null,null,null,"Fig - Panache - Scion",1]
["Malus 1080-L15","Apple - Elstar - Scion",1,"2393",null,null,null,"Fig - Panino - Scion",2]
["Malus 1080-L15","Apple - Elstar - Scion",1,"2399",null,null,null,"Fig - Peters Honey - Potted",1]
["Malus 5141-W32","Apple - First and Last - Scion",1,"2380",null,null,null,"Fig - Sicilian Red - Scion",4]
["Malus 5141-W32","Apple - First and Last - Scion",1,"2399",null,null,null,"Fig - Signora - Scion",2]
["Malus 5023-HL33","Apple - Frederick - Scion",20,"2411",null,null,null,"Fig - Sr Antonio - Potted",1]
["Malus 2442-G24","Apple - Frequin Tardive de La Sarthe - Scion",1,"2363",null,null,null,"Fig - Sucrette - Scion",1]
["Malus 2442-G24","Apple - Frequin Tardive de La Sarthe - Scion",2,"2400",null,null,null,"Fig - Tayip 2 - Scion",2]
["Malus 2442-G24","Apple - Frequin Tardive de La Sarthe - Scion",1,"2426",null,null,null,"Fig - White Adriatic - Scion",2]
["Malus 5640-","Apple - Freyburg - Scion",1,"2326",null,null,null,"G202 ® - Apple Rootstock - Bare Rooted",38]
["Malus 5640-","Apple - Freyburg - Scion",1,"2455",null,null,null,"G210 ® - Apple Rootstock - Bare Rooted",16]
["Malus 7598-BW","Apple - Fuji - Scion",1,"2330",null,null,null,"G214 ® - Apple Rootstock - Bare Rooted",45]
["Malus 7598-BW","Apple - Fuji - Scion",1,"2377",null,null,null,"G969 ® - Apple Rootstock - Bare Rooted",6]
["Malus 7598-BW","Apple - Fuji - Scion",4,"2395",null,null,null,"Gage - Cambridge Gage - Scion",6]
["Malus 1356-O05","Apple - Gala - Scion",1,"2327",null,null,null,"Gage - Jefferson Gage - Scion",2]
["Malus 1356-O05","Apple - Gala - Scion",1,"2334",null,null,null,"Gage - Oullins (Golden) Gage - Scion",5]
["Malus 2444-G19","Apple - Gloria Mundi - Scion",1,"2490",null,null,null,"Gage - Stellas Star - Scion",3]
["Malus 4954-HL49","Apple - Gloucestershire Costard - Scion",1,"2423",null,null,null,"Gisela 5 ® - Cherry Rootstock - Bare Rooted",15]
["Malus 5253-HL22","Apple - Golden Delicious - Scion",1,"2393",null,null,null,"GJ® Adaptabil - Plum Rootstock - Bare Rooted",20]
["Malus 2659-O14","Apple - Golden Glow - Scion",1,"2399",null,null,null,"Kiwi - Cornell (Male Pollinator) - Scion",3]
["Malus 5254-HL18","Apple - Golden Li - Scion",1,"2438",null,null,null,"Kiwi - Scarlet September - Scion",4]
["Malus 1318-Q07","Apple - Golden Russet of Western New York - Scion",1,"2322",null,null,null,"Krymsk® 1 (VVA-1)  - Plum Rootstock - Bare Rooted",85]
["Malus 1318-Q07","Apple - Golden Russet of Western New York - Scion",1,"2330",null,null,null,"M116 ® - Apple Rootstock - Bare Rooted",100]
["Malus 1318-Q07","Apple - Golden Russet of Western New York - Scion",1,"2333",null,null,null,"M25 - Apple Rootstock - Bare Rooted",35]
["Malus 1318-Q07","Apple - Golden Russet of Western New York - Scion",1,"2334",null,null,null,"M26 - Apple Rootstock - Bare Rooted",40]
["Malus 1318-Q07","Apple - Golden Russet of Western New York - Scion",1,"2393",null,null,null,"M27 - Apple Rootstock - Bare Rooted",39]
["Malus 1318-Q07","Apple - Golden Russet of Western New York - Scion",1,"2414",null,null,null,"M4 - Apple Rootstock - Bare Rooted",2]
["Malus 1318-Q07","Apple - Golden Russet of Western New York - Scion",1,"2423",null,null,null,"M7 - Apple Rootstock - Bare Rooted",5]
["Malus 1318-Q07","Apple - Golden Russet of Western New York - Scion",1,"2474",null,null,null,"M9 - Apple Rootstock - Bare Rooted",66]
["Malus 4282-I55","Apple - Granny Smith - Scion",1,"2335",null,null,null,"Medlar - Iranian Medlar - Scion",7]
["Malus 4282-I55","Apple - Granny Smith - Scion",2,"2392",null,null,null,"Medlar - Large Dutch - Scion",4]
["Malus 3600-U25","Apple - Grasten Sabygard - Scion",1,"2323",null,null,null,"Medlar - Nottingham - Scion",4]
["Malus 3600-U25","Apple - Grasten Sabygard - Scion",1,"2414",null,null,null,"Medlar - Sultani - Scion",4]
["Malus 3600-U25","Apple - Grasten Sabygard - Scion",1,"2416",null,null,null,"MM106 - Apple Rootstock - Bare Rooted",100]
["Malus 3600-U25","Apple - Grasten Sabygard - Scion",1,"2490",null,null,null,"MM111 - Apple Rootstock - Bare Rooted",17]
["Malus 1677-A07","Apple - Greensleeves - Scion",1,"2335",null,null,null,"Pear - Akca - Scion",2]
["Malus 1677-A07","Apple - Greensleeves - Scion",1,"2418",null,null,null,"Pear - Amfora - Scion",3]
["Malus 2446-G16","Apple - Hagloe Crab - Scion",2,"2400",null,null,null,"Pear - Ankara - Scion",2]
["Malus 3221-U20","Apple - Hans Wassard - Scion",1,"2346",null,null,null,"Pear - Beth - Scion",2]
["Malus 3221-U20","Apple - Hans Wassard - Scion",1,"2414",null,null,null,"Pear - Beurre Morettini - Scion",4]
["Malus 5021-HL38","Apple - Harry Masters Jersey - Scion",2,"2392",null,null,null,"Pear - Blanquilha - Scion",2]
["Malus 5021-HL38","Apple - Harry Masters Jersey - Scion",1,"2422",null,null,null,"Pear - Buerre (Butirra) Giffard - Scion",6]
["Malus 4289-G60","Apple - Herefordshire Redstreak - Scion",1,"2422",null,null,null,"Pear - Butirra Ardenpoint - Scion",2]
["Malus 4289-G60","Apple - Herefordshire Redstreak - Scion",1,"2464",null,null,null,"Pear - Catillac - Scion",2]
["Malus 4289-G60","Apple - Herefordshire Redstreak - Scion",8,"2470",null,null,null,"Pear - Certeau d Automne - Scion",1]
["Malus 4953-HL44","Apple - Hunthouse Pippin - Scion",2,"2357",null,null,null,"Pear - Concorde - Scion",3]
["Malus 4953-HL44","Apple - Hunthouse Pippin - Scion",1,"2414",null,null,null,"Pear - Condo - Scion",1]
["Malus 1590-BW24","Apple - Improved Dove - Scion",2,"2392",null,null,null,"Pear - Desertnaja Rossosanskaja - Scion",1]
["Malus 2010-O11","Apple - Ingalls Red - Scion",1,"2349",null,null,null,"Pear - Dessertbirne - Scion",1]
["Malus 2010-O11","Apple - Ingalls Red - Scion",1,"2356",null,null,null,"Pear - Deveci (Devici)- Scion",2]
["Malus 2010-O11","Apple - Ingalls Red - Scion",4,"2376",null,null,null,"Pear - Dicolor - Scion",7]
["Malus 1668-P15","Apple - Irish Peach - Scion",1,"2329",null,null,null,"Pear - Doyenne d Ete - Scion",3]
["Malus 1668-P15","Apple - Irish Peach - Scion",1,"2363",null,null,null,"Pear - Eva Baltet - Scion",3]
["Malus 1668-P15","Apple - Irish Peach - Scion",1,"2381",null,null,null,"Pear - Faworytka - Scion",3]
["Malus 1668-P15","Apple - Irish Peach - Scion",1,"2482",null,null,null,"Pear - Forelle - Scion",1]
["Malus 1668-P15","Apple - Irish Peach - Scion",1,"2486",null,null,null,"Pear - General Leclerc - Scion",2]
["Malus 2007-L20","Apple - Isaac Newton - Scion",2,"2392",null,null,null,"Pear - Ginn - Scion",4]
["Malus 4291/BG-I62","Apple - James Grieve - Scion",1,"2340",null,null,null,"Pear - Harrow Sweet - Scion",4]
["Malus 4291/BG-I62","Apple - James Grieve - Scion",3,"2376",null,null,null,"Pear - Hendre Huff - Scion",8]
["Malus 5269-HL21","Apple - Jaszvadoka - Scion",1,"2346",null,null,null,"Pear - Joaquina - Scion",1]
["Malus 5269-HL21","Apple - Jaszvadoka - Scion",1,"2466",null,null,null,"Pear - Karahuseyin - Scion",4]
["Malus 5040-HL27","Apple - Johnny Andrews - Scion",2,"2353",null,null,null,"Pear - Keiffer - Scion",3]
["Malus 5040-HL27","Apple - Johnny Andrews - Scion",1,"2464",null,null,null,"Pear - Lubecker Prinzessinbirne - Scion",{"$f":"SUMIF(B259:B2268,H259,C259:C2268)","v":6}]
["Malus 1074-L07","Apple - Jonagold - Scion",1,"2326",null,null,null,"Pear - Merton Pride - Scion",1]
["Malus 1074-L07","Apple - Jonagold - Scion",1,"2377",null,null,null,"Pear - Mramornaja - Scion",1]
["Malus 1074-L07","Apple - Jonagold - Scion",1,"2393",null,null,null,"Pear - Mustafa Bey - Scion",3]
["Malus 1074-L07","Apple - Jonagold - Scion",1,"2395",null,null,null,"Pear - Nobili - Scion",1]
["Malus 1790-P31","Apple - Karmijn de Sonnaville - Scion",1,"2328",null,null,null,"Pear - Old Home LARS - Scion",2]
["Malus 1790-P31","Apple - Karmijn de Sonnaville - Scion",1,"2340",null,null,null,"Pear - Orak (Orca) - Scion",1]
["Malus 1790-P31","Apple - Karmijn de Sonnaville - Scion",1,"2350",null,null,null,"Pear - Paten (Patten) - Scion",6]
["Malus 1630-000","Apple - Katy / Katja - Scion",1,"2329",null,null,null,"Pear - Pepi - Scion",3]
["Malus 1630-000","Apple - Katy / Katja - Scion",1,"2336",null,null,null,"Pear - Pimaston Duchess - Scion",6]
["Malus 1630-000","Apple - Katy / Katja - Scion",1,"2337",null,null,null,"Pear - Potatoe - Scion",4]
["Malus 1630-000","Apple - Katy / Katja - Scion",1,"2351",null,null,null,"Pear - Principessa Gonzaga - Scion",1]
["Malus 4979-BW28","Apple - Kermerrien - Scion",1,"2363",null,null,null,"Pear - Red - Scion",1]
["Malus 3892-","Apple - King Byrd - Scion",1,"2336",null,null,null,"Pear - Riza Bey - Scion",2]
["Malus 3892-","Apple - King Byrd - Scion",1,"2337",null,null,null,"Pear - Russkaja Krasavica - Scion",2]
["Malus 3892-","Apple - King Byrd - Scion",1,"2363",null,null,null,"Pear - Schweizerhose - Scion",3]
["Malus 3892-","Apple - King Byrd - Scion",1,"2490",null,null,null,"Pear - Souvenir - Scion",2]
["Malus 7093-BW","Apple - King Coffee - Scion",4,"2375",null,null,null,"Pear - Taynton Squash - Scion",8]
["Malus 7093-BW","Apple - King Coffee - Scion",2,"2392",null,null,null,"Pear - Uta - Scion",1]
["Malus 5243/5648-W47","Apple - King David - Scion",1,"2335",null,null,null,"Pear - Verbelu - Scion",2]
["Malus 5243/5648-W47","Apple - King David - Scion",1,"2343",null,null,null,"Pear - Warren - Scion",6]
["Malus 5243/5648-W47","Apple - King David - Scion",1,"2356",null,null,null,"Pear - Williams' Bon Chretien - Scion",6]
["Malus 5243/5648-W47","Apple - King David - Scion",1,"2363",null,null,null,"Pear - Winnals Longdon - Scion",7]
["Malus 5243/5648-W47","Apple - King David - Scion",1,"2380",null,null,null,"Persimmon - Cioccolatino (chocolate) - Scions",5]
["Malus 5243/5648-W47","Apple - King David - Scion",1,"2399",null,null,null,"Persimmon - Hiratanesnashi - Scions",3]
["Malus 5243/5648-W47","Apple - King David - Scion",1,"2404",null,null,null,"Persimmon - Rojo Brillante - Scions",5]
["Malus 5243/5648-W47","Apple - King David - Scion",1,"2423",null,null,null,"Plum - Anna Spath - Scion",5]
["Malus 5243/5648-W47","Apple - King David - Scion",1,"2467",null,null,null,"Plum - Apricot - Scion",2]
["Malus 5243/5648-W47","Apple - King David - Scion",1,"2482",null,null,null,"Plum - Belgian Purple - Scion",1]
["Malus 5243/5648-W47","Apple - King David - Scion",1,"2486",null,null,null,"Plum - Czar - Scion",5]
["Malus 5243/5648-W47","Apple - King David - Scion",1,"2490",null,null,null,"Plum - Guinevere - Scion",6]
["Malus 776-A01","Apple - Kingston Black - Scion",2,"2392",null,null,null,"Plum - Herman - Scion",5]
["Malus 776-A01","Apple - Kingston Black - Scion",1,"2422",null,null,null,"Plum - Mirabelle - Scion",7]
["Malus 776-A01","Apple - Kingston Black - Scion",1,"2464",null,null,null,"Plum - Opal - Scion",6]
["Malus 776-A01","Apple - Kingston Black - Scion",4,"2470",null,null,null,"Plum - President - Scion",2]
["Malus 1082-J26","Apple - Kirton Fair - Scion",1,"2333",null,null,null,"Plum - Reine-claude d Oullins - Scion",1]
["Malus 1082-J26","Apple - Kirton Fair - Scion",1,"2356",null,null,null,"Plum - Swan - Scion",3]
["Malus 3416-B06","Apple - Knotted Kernel - Scion",1,"2380",null,null,null,"Plum - Sweet Amers - Scion",2]
["Malus 3416-B06","Apple - Knotted Kernel - Scion",1,"2414",null,null,null,"Plum - Warwickshire Drooper - Scion",10]
["Malus 5674-X6","Apple - Ladys Finger - Scion",1,"2326",null,null,null,"Pyrodwarf® - Pear Rootstock - Bare Rooted",2]
["Malus 783-B23","Apple - Lanes Prince Albert - Scion",1,"2329",null,null,null,"Pyrus OHXF87™ - Pear Rootstock - Bare Rooted",56]
["Malus 783-B23","Apple - Lanes Prince Albert - Scion",1,"2340",null,null,null,"Quince - Aurelia - Scion",2]
["Malus 783-B23","Apple - Lanes Prince Albert - Scion",1,"2343",null,null,null,"Quince - Bencikli - Scion",3]
["Malus 783-B23","Apple - Lanes Prince Albert - Scion",1,"2430",null,null,null,"Quince - Cukurgobek (Cukurgöbek) - Scion",1]
["Malus 801-000","Apple - Laxton Epicure - Scion",1,"2336",null,null,null,"Quince - Ege 22 - Scion",2]
["Malus 801-000","Apple - Laxton Epicure - Scion",1,"2337",null,null,null,"Quince - Krymsk (Aromatnaya) - Scion",6]
["Malus 801-000","Apple - Laxton Epicure - Scion",1,"2349",null,null,null,"Quince - Limon - Scion",4]
["Malus 801-000","Apple - Laxton Epicure - Scion",1,"2443",null,null,null,"Quince - Muskatnaja - Scion",5]
["Malus 1029-Q33","Apple - Laxton Fortune - Scion",1,"2323",null,null,null,"Quince - Vranja - Scion",2]
["Malus 1029-Q33","Apple - Laxton Fortune - Scion",1,"2336",null,null,null,"Quince - Wudonia - Scion",2]
["Malus 1029-Q33","Apple - Laxton Fortune - Scion",1,"2337",null,null,null,"Quince A - Pear Rootstock - Bare Rooted",27]
["Malus 1039-Q30","Apple - Longkeeper - Scion",1,"2380",null,null,null,"Quince BA - Pear Rootstock - Bare Rooted",5]
["Malus 1039-Q30","Apple - Longkeeper - Scion",1,"2417",null,null,null,"Quince C - Pear Rootstock - Bare Rooted",47]
["Malus 1039-Q30","Apple - Longkeeper - Scion",1,"2490",null,null,null,"Quince 'Eline®' - Pear Rootstock - Bare Rooted",4]
["Malus 5619-HL05","Apple - Marriage Maker - Scion",1,"2334",null,null,null,"St Julian A - Plum Rootstock - Bare Rooted",41]
["Malus 5619-HL05","Apple - Marriage Maker - Scion",1,"2340",null,null,null,"Supporter® 4 (PI80) - Apple Rootstock - Bare Rooted",17]
["Malus 5619-HL05","Apple - Marriage Maker - Scion",1,"2363",null,null,null,"Walnut - Rode Doneau - Scion",10]
["Malus 5619-HL05","Apple - Marriage Maker - Scion",1,"2399",null,null,null,"WUR S766 - Plum (Prunus) Rootstock - Bare Rooted",11]
["Malus 5619-HL05","Apple - Marriage Maker - Scion",1,"2464"]
["Malus 3924-HL10","Apple - Martins Custard - Scion",1,"2399"]
["Malus 3924-HL10","Apple - Martins Custard - Scion",1,"2482"]
["Malus 3740/4691-U24","Apple - McIntosh- Scion",1,"2330"]
["Malus 3740/4691-U24","Apple - McIntosh- Scion",1,"2356"]
["Malus 3740/4691-U24","Apple - McIntosh- Scion",1,"2418"]
["Malus 1640-P09","Apple - Merton Knave - Scion",1,"2356"]
["Malus 1640-P09","Apple - Merton Knave - Scion",1,"2486"]
["Malus 788-B04","Apple - Merton Russet - Scion",1,"2327"]
["Malus 788-B04","Apple - Merton Russet - Scion",1,"2360"]
["Malus 788-B04","Apple - Merton Russet - Scion",2,"2479"]
["Malus 788-B04","Apple - Merton Russet - Scion",1,"2482"]
["Malus 5019-HL35","Apple - Monmouth Beauty (Cissy) - Scion",1,"2323"]
["Malus 5019-HL35","Apple - Monmouth Beauty (Cissy) - Scion",1,"2346"]
["Malus 5019-HL35","Apple - Monmouth Beauty (Cissy) - Scion",2,"2381"]
["Malus 1035-Q31","Apple - Mosses Seedling - Scion",1,"2325"]
["Malus 1641-M02","Apple - Nutmeg Pippin - Scion",1,"2323"]
["Malus 1641-M02","Apple - Nutmeg Pippin - Scion",1,"2414"]
["Malus 1085-J32","Apple - Orleans Reinette - Scion",1,"2363"]
["Malus 1085-J32","Apple - Orleans Reinette - Scion",1,"2381"]
["Malus 1085-J32","Apple - Orleans Reinette - Scion",1,"2490"]
["Malus 1047/6393-Q23","Apple - Pear Apple - Scion",1,"2327"]
["Malus 1047/6393-Q23","Apple - Pear Apple - Scion",1,"2365"]
["Malus 4580-W5","Apple - Pigeon de Jerusalem - Scion",1,"2363"]
["Malus 4580-W5","Apple - Pigeon de Jerusalem - Scion",1,"2414"]
["Malus 4580-W5","Apple - Pigeon de Jerusalem - Scion",1,"2430"]
["Malus 4580-W5","Apple - Pigeon de Jerusalem - Scion",1,"2443"]
["Malus 1026-Q34","Apple - Pigs Snout - Scion",2,"2376"]
["Malus 1026-Q34","Apple - Pigs Snout - Scion",1,"2422"]
["Malus 4903-W13","Apple - Pink Parfait - Scion",1,"2363"]
["Malus 4903-W13","Apple - Pink Parfait - Scion",1,"2377"]
["Malus 8708","Apple - Pink Pearl - Barerooted",1,"2431"]
["Malus 0000-M0","Apple - Pitmaston Pineapple - Scion",1,"2323"]
["Malus 0000-M0","Apple - Pitmaston Pineapple - Scion",1,"2325"]
["Malus 0000-M0","Apple - Pitmaston Pineapple - Scion",2,"2387"]
["Malus 0000-M0","Apple - Pitmaston Pineapple - Scion",1,"2393"]
["Malus 0000-M0","Apple - Pitmaston Pineapple - Scion",2,"2416"]
["Malus 0000-M0","Apple - Pitmaston Pineapple - Scion",1,"2417"]
["Malus 0000-M0","Apple - Pitmaston Pineapple - Scion",1,"2418"]
["Malus 0000-M0","Apple - Pitmaston Pineapple - Scion",1,"2485"]
["Malus 5145-W45","Apple - Purple Passion - Scion",1,"2335"]
["Malus 5145-W45","Apple - Purple Passion - Scion",1,"2340"]
["Malus 5145-W45","Apple - Purple Passion - Scion",1,"2354"]
["Malus 5145-W45","Apple - Purple Passion - Scion",1,"2356"]
["Malus 5145-W45","Apple - Purple Passion - Scion",2,"2357"]
["Malus 2011-000","Apple - Rajka - Scion",1,"2328"]
["Malus 2011-000","Apple - Rajka - Scion",1,"2333"]
["Malus 2011-000","Apple - Rajka - Scion",1,"2335"]
["Malus 2011-000","Apple - Rajka - Scion",1,"2363"]
["Malus 2892","Apple - Rambour d Hiver - Scion",1,"2365"]
["Malus 1050-Q20","Apple - Rattler - Scion",1,"2329"]
["Malus 1050-Q20","Apple - Rattler - Scion",4,"2375"]
["Malus 1050-Q20","Apple - Rattler - Scion",1,"2482"]
["Malus 5256-HL17","Apple - Red Chief - Scion",1,"2349"]
["Malus 5256-HL17","Apple - Red Chief - Scion",1,"2414"]
["Malus 5256-HL17","Apple - Red Chief - Scion",1,"2416"]
["Malus 5256-HL17","Apple - Red Chief - Scion",1,"2459"]
["Malus 5085-W18","Apple - Redfield - Scion",1,"2346"]
["Malus 5085-W18","Apple - Redfield - Scion",1,"2354"]
["Malus 4746-HL1","Apple - Reine des Pommes - Scion",1,"2381"]
["Malus 4746-HL1","Apple - Reine des Pommes - Scion",1,"2426"]
["Malus 1642-P12","Apple - Reinette Ananas - Scion",1,"2323"]
["Malus 1642-P12","Apple - Reinette Ananas - Scion",1,"2328"]
["Malus 1642-P12","Apple - Reinette Ananas - Scion",1,"2333"]
["Malus 1642-P12","Apple - Reinette Ananas - Scion",1,"2356"]
["Malus 1642-P12","Apple - Reinette Ananas - Scion",1,"2360"]
["Malus 1642-P12","Apple - Reinette Ananas - Scion",1,"2363"]
["Malus 1642-P12","Apple - Reinette Ananas - Scion",2,"2387"]
["Malus 1642-P12","Apple - Reinette Ananas - Scion",1,"2393"]
["Malus 1642-P12","Apple - Reinette Ananas - Scion",1,"2455"]
["Malus 3181-U18","Apple - Reinette de Brucbrucks - Scion",1,"2350"]
["Malus 1724-P01","Apple - Reinette grise du Canada - Scion",1,"2327"]
["Malus 1724-P01","Apple - Reinette grise du Canada - Scion",1,"2334"]
["Malus 1724-P01","Apple - Reinette grise du Canada - Scion",1,"2358"]
["Malus 1724-P01","Apple - Reinette grise du Canada - Scion",1,"2384"]
["Malus 1724-P01","Apple - Reinette grise du Canada - Scion",1,"2473"]
["Malus 1083-L14","Apple - Ribston Pippin - Scion",1,"2323"]
["Malus 1083-L14","Apple - Ribston Pippin - Scion",1,"2363"]
["Malus 1083-L14","Apple - Ribston Pippin - Scion",1,"2466"]
["Malus 8770","Apple - Rosalisa - Rootstock",1,"2415"]
["Malus 1032-Q32","Apple - Ross Nonpareil - Scion",1,"2325"]
["Malus 1781/4374-000","Apple - Rotor Eiserapfel - Scion",1,"2365"]
["Malus 3475-U35","Apple - Rubin - Scion",5,"2025"]
["Malus 2014-000","Apple - Rubinola - Scion",1,"2368"]
["Malus 2014-000","Apple - Rubinola - Scion",1,"2455"]
["Malus 2014-000","Apple - Rubinola - Scion",2,"2462"]
["Malus 1084-J09","Apple - Saturn - Scion",1,"2349"]
["Malus 1084-J09","Apple - Saturn - Scion",1,"2384"]
["Malus 1084-J09","Apple - Saturn - Scion",2,"2479"]
["Malus 1323-Q02","Apple - Shizuka - Scion",1,"2377"]
["Malus 1323-Q02","Apple - Shizuka - Scion",1,"2416"]
["Malus 1323-Q02","Apple - Shizuka - Scion",1,"2438"]
["Malus 5637-000","Apple - Snow (Fameuse) - Scion",1,"2326"]
["Malus 5637-000","Apple - Snow (Fameuse) - Scion",1,"2358"]
["Malus 5637-000","Apple - Snow (Fameuse) - Scion",1,"2368"]
["Malus 5637-000","Apple - Snow (Fameuse) - Scion",1,"2399"]
["Malus 5637-000","Apple - Snow (Fameuse) - Scion",1,"2414"]
["Malus 5637-000","Apple - Snow (Fameuse) - Scion",1,"2462"]
["Malus 2201-BW25","Apple - Somerset Redstreak - Scion",2,"2392"]
["Malus 2201-BW25","Apple - Somerset Redstreak - Scion",1,"2414"]
["Malus 2201-BW25","Apple - Somerset Redstreak - Scion",1,"2426"]
["Malus 2201-BW25","Apple - Somerset Redstreak - Scion",1,"2434"]
["Malus 1689-P14","Apple - Sops in Wine - Scion",1,"2323"]
["Malus 1689-P14","Apple - Sops in Wine - Scion",1,"2335"]
["Malus 1689-P14","Apple - Sops in Wine - Scion",1,"2374"]
["Malus 1689-P14","Apple - Sops in Wine - Scion",4,"2375"]
["Malus 1689-P14","Apple - Sops in Wine - Scion",2,"2414"]
["Malus 1689-P14","Apple - Sops in Wine - Scion",1,"2434"]
["Malus 1689-P14","Apple - Sops in Wine - Scion",1,"2464"]
["Malus 7917-","Apple - Spalord - Scion",1,"2346"]
["Malus 7917-","Apple - Spalord - Scion",1,"2365"]
["Malus 785-B15","Apple - Spartan - Scion",1,"2323"]
["Malus 785-B15","Apple - Spartan - Scion",1,"2377"]
["Malus 785-B15","Apple - Spartan - Scion",1,"2393"]
["Malus 785-B15","Apple - Spartan - Scion",1,"2467"]
["Malus 1087-J05","Apple - St Edmunds Russet - Scion",1,"2334"]
["Malus 1087-J05","Apple - St Edmunds Russet - Scion",1,"2351"]
["Malus 1087-J05","Apple - St Edmunds Russet - Scion",1,"2354"]
["Malus 1087-J05","Apple - St Edmunds Russet - Scion",1,"2363"]
["Malus 1087-J05","Apple - St Edmunds Russet - Scion",3,"2376"]
["Malus 1087-J05","Apple - St Edmunds Russet - Scion",1,"2384"]
["Malus 1087-J05","Apple - St Edmunds Russet - Scion",1,"2387"]
["Malus 1087-J05","Apple - St Edmunds Russet - Scion",1,"2455"]
["Malus 2452-G4","Apple - Stembridge Cluster - Scion",2,"2392"]
["Malus 812-F12","Apple - Sturmer Pippin - Scion",1,"2334"]
["Malus 812-F12","Apple - Sturmer Pippin - Scion",1,"2358"]
["Malus 799-D13","Apple - Sunset - Scion",1,"2323"]
["Malus 799-D13","Apple - Sunset - Scion",1,"2328"]
["Malus 799-D13","Apple - Sunset - Scion",1,"2360"]
["Malus 799-D13","Apple - Sunset - Scion",1,"2393"]
["Malus 799-D13","Apple - Sunset - Scion",5,"2436"]
["Malus 799-D13","Apple - Sunset - Scion",1,"2467"]
["Malus 5020-HL34","Apple - Sweet Merlin - Scion",1,"2467"]
["Malus 5257-HL16","Apple - Tenroy - Scion",1,"2329"]
["Malus 2454-G15","Apple - Tom Putt - Scion",1,"2422"]
["Malus 2283/1053-O02","Apple - Topaz - Scion",1,"2329"]
["Malus 2283/1053-O02","Apple - Topaz - Scion",1,"2354"]
["Malus 1278-O23","Apple - Twenty Ounce (20 ounce) - Scion",1,"2399"]
["Malus 1278-O23","Apple - Twenty Ounce (20 ounce) - Scion",1,"2430"]
["Malus 5102-X46","Apple - Valkea kuulas (White Transparent) - Scion",1,"2456"]
["Malus 5102-X46","Apple - Valkea kuulas (White Transparent) - Scion",1,"2466"]
["Malus 5638-","Apple - Viking - Scion",1,"2363"]
["Malus 5638-","Apple - Viking - Scion",1,"2368"]
["Malus 5638-","Apple - Viking - Scion",1,"2399"]
["Malus 5638-","Apple - Viking - Scion",1,"2404"]
["Malus 3473-U42","Apple - Whitpot Sweet - Scion",4,"2376"]
["Malus 3473-U42","Apple - Whitpot Sweet - Scion",1,"2443"]
["Malus 3473-U42","Apple - Whitpot Sweet - Scion",1,"2467"]
["Malus 5240-W23","Apple - Wickson Crab - Scion",2,"2328"]
["Malus 5240-W23","Apple - Wickson Crab - Scion",1,"2346"]
["Malus 5240-W23","Apple - Wickson Crab - Scion",1,"2354"]
["Malus 5240-W23","Apple - Wickson Crab - Scion",1,"2363"]
["Malus 5240-W23","Apple - Wickson Crab - Scion",1,"2422"]
["Malus 5240-W23","Apple - Wickson Crab - Scion",4,"2447"]
["Malus 1043-Q27","Apple - Winter Greening - Scion",1,"2414"]
["Malus 820-H26","Apple - Worcester Pearmain - Scion",1,"2326"]
["Malus 820-H26","Apple - Worcester Pearmain - Scion",1,"2363"]
["Malus 820-H26","Apple - Worcester Pearmain - Scion",1,"2368"]
["Malus 820-H26","Apple - Worcester Pearmain - Scion",1,"2414"]
["Malus 820-H26","Apple - Worcester Pearmain - Scion",1,"2417"]
["Malus 5618-HL04","Apple - Wyken Pippin - Scion",1,"2323"]
["Malus 5618-HL04","Apple - Wyken Pippin - Scion",1,"2356"]
["Malus 5618-HL04","Apple - Wyken Pippin - Scion",1,"2423"]
["Malus 2255-BW34","Apple - Yarlington Mill - Scion",1,"2363"]
["Malus 2255-BW34","Apple - Yarlington Mill - Scion",1,"2381"]
["Malus 2255-BW34","Apple - Yarlington Mill - Scion",2,"2392"]
["Malus 2255-BW34","Apple - Yarlington Mill - Scion",1,"2422"]
["Malus 2255-BW34","Apple - Yarlington Mill - Scion",1,"2434"]
["Malus 2255-BW34","Apple - Yarlington Mill - Scion",1,"2464"]
["Malus 2255-BW34","Apple - Yarlington Mill - Scion",10,"2470"]
["Malus 1308-Q15","Apple - Yellow Transparent - Scion",1,"2438"]
["Prunus 2539-K29","Apricot - Hargrand - Scion",2,"2025"]
["Prunus 3353-J01","Apricot - Moorpark - Scion",2,"2352"]
["Pyrus 4196-N51","Asian Pear - Chojuro - Scion",2,"2327"]
["Pyrus 4196-N51","Asian Pear - Chojuro - Scion",1,"2343"]
["Pyrus 4196-N51","Asian Pear - Chojuro - Scion",3,"2405"]
["Pyrus 4196-N51","Asian Pear - Chojuro - Scion",1,"2418"]
["Pyrus 4196-N51","Asian Pear - Chojuro - Scion",1,"2430"]
["Pyrus 7019-J49","Asian Pear - Early Shu - Scion",1,"2416"]
["Pyrus 7019-J49","Asian Pear - Early Shu - Scion",1,"2466"]
["Pyrus 5383-Y03","Asian Pear - Erdi Korai - Scion",2,"2331"]
["Pyrus 5383-Y03","Asian Pear - Erdi Korai - Scion",1,"2363"]
["Pyrus 5383-Y03","Asian Pear - Erdi Korai - Scion",1,"2424"]
["Pyrus 5383-Y03","Asian Pear - Erdi Korai - Scion",1,"2425"]
["Pyrus 5383-Y03","Asian Pear - Erdi Korai - Scion",1,"2466"]
["Pyrus 6950","Asian Pear - Hong Li - Scion",1,"2416"]
["Pyrus 6950","Asian Pear - Hong Li - Scion",1,"2418"]
["Pyrus 6950","Asian Pear - Hong Li - Scion",1,"2429"]
["Pyrus 6950","Asian Pear - Hong Li - Scion",1,"2466"]
["Pyrus 4194-N49","Asian Pear - Hosui - Scion",2,"2405"]
["Pyrus 4194-N49","Asian Pear - Hosui - Scion",1,"2416"]
["Pyrus 4194-N49","Asian Pear - Hosui - Scion",1,"2418"]
["Pyrus 4194-N49","Asian Pear - Hosui - Scion",1,"2462"]
["Pyrus 7951-BW100","Asian Pear - Man Sun Gil - Scion",1,"2327"]
["Pyrus 7951-BW100","Asian Pear - Man Sun Gil - Scion",2,"2331"]
["Pyrus 7951-BW100","Asian Pear - Man Sun Gil - Scion",1,"2340"]
["Pyrus 6832-H65","Asian Pear - Meigetsu - Scion",2,"2331"]
["Pyrus 6832-H65","Asian Pear - Meigetsu - Scion",1,"2363"]
["Pyrus 6832-H65","Asian Pear - Meigetsu - Scion",1,"2381"]
["Pyrus 6832-H65","Asian Pear - Meigetsu - Scion",1,"2416"]
["Pyrus 6832-H65","Asian Pear - Meigetsu - Scion",1,"2425"]
["Pyrus 6832-H65","Asian Pear - Meigetsu - Scion",1,"2438"]
["Pyrus 6832-H65","Asian Pear - Meigetsu - Scion",1,"2462"]
["Pyrus 6832-H65","Asian Pear - Meigetsu - Scion",1,"2464"]
["Pyrus 4198-N54","Asian Pear - Niitaka - Scion",1,"2416"]
["Pyrus 4195-N53","Asian Pear - Nijisseiki - Scion",1,"2418"]
["Pyrus 4195-N53","Asian Pear - Nijisseiki - Scion",1,"2419"]
["Pyrus 4195-N53","Asian Pear - Nijisseiki - Scion",1,"2438"]
["Pyrus 4195-N53","Asian Pear - Nijisseiki - Scion",1,"2483"]
["Pyrus 3257-J48","Asian Pear - Raja - Scion",1,"2327"]
["Pyrus 3257-J48","Asian Pear - Raja - Scion",2,"2331"]
["Pyrus 3257-J48","Asian Pear - Raja - Scion",2,"2342"]
["Pyrus 3257-J48","Asian Pear - Raja - Scion",1,"2416"]
["Pyrus 3257-J48","Asian Pear - Raja - Scion",1,"2459"]
["Pyrus 5692-BG","Asian Pear - Shinseiki - Scion",2,"2327"]
["Pyrus 5692-BG","Asian Pear - Shinseiki - Scion",2,"2342"]
["Pyrus 5692-BG","Asian Pear - Shinseiki - Scion",1,"2418"]
["Pyrus 5692-BG","Asian Pear - Shinseiki - Scion",1,"2424"]
["Pyrus 5692-BG","Asian Pear - Shinseiki - Scion",1,"2429"]
["Pyrus 5692-BG","Asian Pear - Shinseiki - Scion",1,"2430"]
["Pyrus 5692-BG","Asian Pear - Shinseiki - Scion",1,"2438"]
["Pyrus 5692-BG","Asian Pear - Shinseiki - Scion",1,"2483"]
["Pyrus 7902-BW","Asian Pear - UK Li (cross) - Scion",2,"2331"]
["Pyrus 7902-BW","Asian Pear - UK Li (cross) - Scion",1,"2342"]
["Pyrus 7902-BW","Asian Pear - UK Li (cross) - Scion",1,"2377"]
["Pyrus 7902-BW","Asian Pear - UK Li (cross) - Scion",1,"2416"]
["Pyrus 7902-BW","Asian Pear - UK Li (cross) - Scion",1,"2430"]
["Pyrus 7902-BW","Asian Pear - UK Li (cross) - Scion",1,"2466"]
["Malus Rtsk-00","B118 - Apple Rootstock - Bare Rooted",5,"2339"]
["Malus Rtsk-00","B118 - Apple Rootstock - Bare Rooted",3,"2408"]
["Malus Rtsk-00","B118 - Apple Rootstock - Bare Rooted",4,"2443"]
["Malus Rtsk-00","B118 - Apple Rootstock - Bare Rooted",10,"2464"]
["Malus Rtsk-00","B9 (Bud9)- Apple Rootstock - Bare Rooted",2,"2363"]
["Malus Rtsk-00","B9 (Bud9)- Apple Rootstock - Bare Rooted",5,"2381"]
["Malus Rtsk-00","B9 (Bud9)- Apple Rootstock - Bare Rooted",3,"2408"]
["Malus Rtsk-00","B9 (Bud9)- Apple Rootstock - Bare Rooted",3,"2428"]
["Malus Rtsk-00","B9 (Bud9)- Apple Rootstock - Bare Rooted",3,"2438"]
["Malus Rtsk-00","B9 (Bud9)- Apple Rootstock - Bare Rooted",4,"2443"]
["Prunus 2664-O43","Cherry - Belle de Mai - Scion",1,"2462"]
["Prunus 1388-N38","Cherry - Burlat - Scions",1,"2462"]
["Prunus 1388-N38","Cherry - Burlat - Scions",1,"2469"]
["Prunus 2282-N45","Cherry - Donissens - Scion",2,"2465"]
["Prunus 2794-N41","Cherry - Early Rivers - Scion",1,"2464"]
["Prunus 2794-N41","Cherry - Early Rivers - Scion",2,"2465"]
["Prunus 1770-N43","Cherry - géant d hedelfingen - Scion",1,"2462"]
["Prunus 1632-O37","Cherry - Giorgia - Scion",1,"2465"]
["Prunus 3663-O34","Cherry - Kordia - Scion",1,"1906"]
["Prunus 3663-O34","Cherry - Kordia - Scion",1,"2459"]
["Prunus 3663-O34","Cherry - Kordia - Scion",1,"2465"]
["Prunus 3663-O34","Cherry - Kordia - Scion",1,"2469"]
["Prunus 1633-O46","Cherry - Lapins - Scion",1,"1906"]
["Prunus 1633-O46","Cherry - Lapins - Scion",1,"2459"]
["Prunus 1633-O46","Cherry - Lapins - Scion",1,"2466"]
["Prunus 1633-O46","Cherry - Lapins - Scion",1,"2469"]
["Prunus 4230-00","Cherry - Rainier - Scion",1,"1906"]
["Prunus 1199-O40","Cherry - Stella - Scions",1,"1906"]
["Prunus 1199-O40","Cherry - Stella - Scions",2,"2387"]
["Prunus 1199-O40","Cherry - Stella - Scions",1,"2406"]
["Prunus 1199-O40","Cherry - Stella - Scions",1,"2433"]
["Prunus 1199-O40","Cherry - Stella - Scions",1,"2466"]
["Prunus 1199-O40","Cherry - Stella - Scions",1,"2469"]
["Prunus 7932-00","Cherry - Sweetheart - Scion",1,"2459"]
["Prunus 7932-00","Cherry - Sweetheart - Scion",2,"2465"]
["Prunus 7932-00","Cherry - Sweetheart - Scion",1,"2466"]
["Prunus 7932-00","Cherry - Sweetheart - Scion",1,"2469"]
["Prunus 7932-00","Cherry - Sweetheart - Scion",1,"2476"]
["Prunus 2302-O48","Cherry - Vann - Scions",1,"1906"]
["Prunus 2302-O48","Cherry - Vann - Scions",2,"2387"]
["Prunus 2302-O48","Cherry - Vann - Scions",1,"2406"]
["Prunus 2302-O48","Cherry - Vann - Scions",1,"2409"]
["Prunus 2302-O48","Cherry - Vann - Scions",1,"2433"]
["Prunus 1210-O38","Cherry - Vega - Scion",1,"2466"]
["Prunus Rtsk-00","Colt - Cherry Rootstock - Bare Rooted",10,"2025"]
[null,"Colt Cherry Hardwood Cuttings x 10",1,"2478"]
["Prunus 1849-BW12","Damson - Shropshire Damson - Scion",4,"2390"]
["Ficus BGleft-2714","Fig - BG Gold - Scion",1,"2385"]
["Ficus BGleft-2714","Fig - BG Gold - Scion",1,"2466"]
["Ficus BGleft-2714","Fig - BG Gold - Scion",1,"2486"]
["Ficus BGleft-7946","Fig - Bornholms Diamond - Scion",1,"2389"]
["Ficus BGleft-7946","Fig - Bornholms Diamond - Scion",1,"2441"]
["Ficus BGleft-7946","Fig - Bornholms Diamond - Scion",1,"2466"]
["Ficus BGright-8001","Fig - Brunswick - Scion",1,"2388"]
["Ficus BGright","Fig - Celeste - Scion",1,"2385"]
["Ficus BGright","Fig - Celeste - Scion",1,"2398"]
["Ficus BGright","Fig - Celeste - Scion",2,"2418"]
["Ficus BGright","Fig - Celeste - Scion",1,"2419"]
["Ficus BGright","Fig - Celeste - Scion",1,"2441"]
["Ficus BGright","Fig - Celeste - Scion",1,"2466"]
["Ficus BGright","Fig - Celeste - Scion",1,"2469"]
["Ficus BGright-7840","Fig - Cerretto - Scion",1,"2385"]
["Ficus BGright-7840","Fig - Cerretto - Scion",1,"2392"]
["Ficus BGright-7840","Fig - Cerretto - Scion",1,"2398"]
["Ficus BGright-7840","Fig - Cerretto - Scion",1,"2419"]
["Ficus BGright-7389","Fig - Cordia - Scion",1,"2398"]
["Ficus BGright-7389","Fig - Cordia - Scion",1,"2430"]
["Ficus BGright","Fig - Desert King - Scion",2,"2418"]
["Ficus BGleft-2650","Fig - Grise de Tarascon - Scion",1,"2389"]
["Ficus BGleft-2650","Fig - Grise de Tarascon - Scion",1,"2419"]
["Ficus BGright-5004","Fig - Mary Lane - Scion",1,"2385"]
["Ficus BGright-5004","Fig - Mary Lane - Scion",1,"2388"]
["Ficus BGright-5004","Fig - Mary Lane - Scion",1,"2398"]
["Ficus BGright-5004","Fig - Mary Lane - Scion",2,"2418"]
["Ficus BGright-5004","Fig - Mary Lane - Scion",1,"2419"]
["Ficus BGright-7863","Fig - Melanzana - Scion",1,"2398"]
["Ficus BGright-7863","Fig - Melanzana - Scion",1,"2441"]
["Ficus BGleft-4628","Fig - Noire de Bellone - Scion",1,"2385"]
["Ficus BGleft-4628","Fig - Noire de Bellone - Scion",1,"2388"]
["Ficus BGleft-4628","Fig - Noire de Bellone - Scion",1,"2392"]
["Ficus BGleft-4628","Fig - Noire de Bellone - Scion",1,"2418"]
["Ficus BGleft-4628","Fig - Noire de Bellone - Scion",1,"2419"]
["Ficus BGleft-4628","Fig - Noire de Bellone - Scion",1,"2420"]
["Ficus BGright-7864","Fig - Osborn Prolific - Scion",1,"2388"]
["Ficus BGright-7864","Fig - Osborn Prolific - Scion",1,"2389"]
["Ficus BGright-7864","Fig - Osborn Prolific - Scion",1,"2392"]
["Ficus BGright-4828","Fig - Panache - Scion",1,"2441"]
["Ficus BGright-7845","Fig - Panino - Scion",1,"2385"]
["Ficus BGright-7845","Fig - Panino - Scion",1,"2389"]
["Ficus","Fig - Peters Honey - Potted",1,"2398"]
["Ficus BGleft-4537","Fig - Sicilian Red - Scion",1,"2389"]
["Ficus BGleft-4537","Fig - Sicilian Red - Scion",1,"2398"]
["Ficus BGleft-4537","Fig - Sicilian Red - Scion",1,"2418"]
["Ficus BGleft-4537","Fig - Sicilian Red - Scion",1,"2419"]
["Ficus BGleft-7835","Fig - Signora - Scion",1,"2388"]
["Ficus BGleft-7835","Fig - Signora - Scion",1,"2419"]
["Ficus","Fig - Sr Antonio - Potted",1,"2398"]
["Ficus BGright-4925","Fig - Sucrette - Scion",1,"2418"]
["Ficus BGleft-7808","Fig - Tayip 2 - Scion",1,"2398"]
["Ficus BGleft-7808","Fig - Tayip 2 - Scion",1,"2466"]
["Ficus BGleft-4688","Fig - White Adriatic - Scion",1,"2398"]
["Ficus BGleft-4688","Fig - White Adriatic - Scion",1,"2430"]
["Malus Rtsk-00","G202 ® - Apple Rootstock - Bare Rooted",5,"2339"]
["Malus Rtsk-00","G202 ® - Apple Rootstock - Bare Rooted",1,"2347"]
["Malus Rtsk-00","G202 ® - Apple Rootstock - Bare Rooted",5,"2365"]
["Malus Rtsk-00","G202 ® - Apple Rootstock - Bare Rooted",2,"2383"]
["Malus Rtsk-00","G202 ® - Apple Rootstock - Bare Rooted",5,"2446"]
["Malus Rtsk-00","G202 ® - Apple Rootstock - Bare Rooted",20,"2489"]
["Malus Rtsk-00","G210 ® - Apple Rootstock - Bare Rooted",5,"2325"]
["Malus Rtsk-00","G210 ® - Apple Rootstock - Bare Rooted",2,"2335"]
["Malus Rtsk-00","G210 ® - Apple Rootstock - Bare Rooted",2,"2347"]
["Malus Rtsk-00","G210 ® - Apple Rootstock - Bare Rooted",3,"2364"]
["Malus Rtsk-00","G210 ® - Apple Rootstock - Bare Rooted",2,"2374"]
["Malus Rtsk-00","G210 ® - Apple Rootstock - Bare Rooted",2,"2383"]
["Malus Rtsk-00","G214 ® - Apple Rootstock - Bare Rooted",2,"2325"]
["Malus Rtsk-00","G214 ® - Apple Rootstock - Bare Rooted",1,"2347"]
["Malus Rtsk-00","G214 ® - Apple Rootstock - Bare Rooted",5,"2369"]
["Malus Rtsk-00","G214 ® - Apple Rootstock - Bare Rooted",2,"2383"]
["Malus Rtsk-00","G214 ® - Apple Rootstock - Bare Rooted",10,"2401"]
["Malus Rtsk-00","G214 ® - Apple Rootstock - Bare Rooted",2,"2410"]
["Malus Rtsk-00","G214 ® - Apple Rootstock - Bare Rooted",3,"2445"]
["Malus Rtsk-00","G214 ® - Apple Rootstock - Bare Rooted",17,"2481"]
["Malus Rtsk-00","G214 ® - Apple Rootstock - Bare Rooted",3,"2487"]
["Malus Rtsk-00","G969 ® - Apple Rootstock - Bare Rooted",5,"2329"]
["Malus Rtsk-00","G969 ® - Apple Rootstock - Bare Rooted",1,"2374"]
["Prunus 4157-PA11","Gage - Cambridge Gage - Scion",1,"2377"]
["Prunus 4157-PA11","Gage - Cambridge Gage - Scion",2,"2387"]
["Prunus 4157-PA11","Gage - Cambridge Gage - Scion",1,"2404"]
["Prunus 4157-PA11","Gage - Cambridge Gage - Scion",1,"2438"]
["Prunus 4157-PA11","Gage - Cambridge Gage - Scion",1,"2476"]
["Prunus 6060-PA28","Gage - Jefferson Gage - Scion",1,"2325"]
["Prunus 6060-PA28","Gage - Jefferson Gage - Scion",1,"2381"]
["Prunus 6416-BW","Gage - Oullins (Golden) Gage - Scion",1,"2348"]
["Prunus 6416-BW","Gage - Oullins (Golden) Gage - Scion",1,"2377"]
["Prunus 6416-BW","Gage - Oullins (Golden) Gage - Scion",1,"2382"]
["Prunus 6416-BW","Gage - Oullins (Golden) Gage - Scion",2,"2447"]
["Prunus 1172-BW17","Gage - Stellas Star - Scion",1,"2409"]
["Prunus 1172-BW17","Gage - Stellas Star - Scion",1,"2429"]
["Prunus 1172-BW17","Gage - Stellas Star - Scion",1,"2438"]
["Prunus Rtsk-00","Gisela 5 ® - Cherry Rootstock - Bare Rooted",5,"2338"]
["Prunus Rtsk-00","Gisela 5 ® - Cherry Rootstock - Bare Rooted",2,"2362"]
["Prunus Rtsk-00","Gisela 5 ® - Cherry Rootstock - Bare Rooted",2,"2367"]
["Prunus Rtsk-00","Gisela 5 ® - Cherry Rootstock - Bare Rooted",2,"2383"]
["Prunus Rtsk-00","Gisela 5 ® - Cherry Rootstock - Bare Rooted",2,"2437"]
["Prunus Rtsk-00","Gisela 5 ® - Cherry Rootstock - Bare Rooted",2,"2476"]
["Malus Rtsk-00","GJ® Adaptabil - Plum Rootstock - Bare Rooted",20,"2025"]
["Actinidia 5436-W12","Kiwi - Cornell (Male Pollinator) - Scion",1,"2356"]
["Actinidia 5436-W12","Kiwi - Cornell (Male Pollinator) - Scion",1,"2392"]
["Actinidia 5436-W12","Kiwi - Cornell (Male Pollinator) - Scion",1,"2466"]
["Actinidia 5906-V52","Kiwi - Scarlet September - Scion",1,"2356"]
["Actinidia 5906-V52","Kiwi - Scarlet September - Scion",1,"2392"]
["Actinidia 5906-V52","Kiwi - Scarlet September - Scion",1,"2438"]
["Actinidia 5906-V52","Kiwi - Scarlet September - Scion",1,"2466"]
["Prunus Rtsk-00","Krymsk® 1 (VVA-1)  - Plum Rootstock - Bare Rooted",20,"2025"]
["Prunus Rtsk-00","Krymsk® 1 (VVA-1)  - Plum Rootstock - Bare Rooted",1,"2335"]
["Prunus Rtsk-00","Krymsk® 1 (VVA-1)  - Plum Rootstock - Bare Rooted",5,"2338"]
["Prunus Rtsk-00","Krymsk® 1 (VVA-1)  - Plum Rootstock - Bare Rooted",10,"2345"]
["Prunus Rtsk-00","Krymsk® 1 (VVA-1)  - Plum Rootstock - Bare Rooted",3,"2362"]
["Prunus Rtsk-00","Krymsk® 1 (VVA-1)  - Plum Rootstock - Bare Rooted",4,"2367"]
["Prunus Rtsk-00","Krymsk® 1 (VVA-1)  - Plum Rootstock - Bare Rooted",3,"2369"]
["Prunus Rtsk-00","Krymsk® 1 (VVA-1)  - Plum Rootstock - Bare Rooted",4,"2377"]
["Prunus Rtsk-00","Krymsk® 1 (VVA-1)  - Plum Rootstock - Bare Rooted",2,"2381"]
["Prunus Rtsk-00","Krymsk® 1 (VVA-1)  - Plum Rootstock - Bare Rooted",5,"2383"]
["Prunus Rtsk-00","Krymsk® 1 (VVA-1)  - Plum Rootstock - Bare Rooted",3,"2437"]
["Prunus Rtsk-00","Krymsk® 1 (VVA-1)  - Plum Rootstock - Bare Rooted",3,"2438"]
["Prunus Rtsk-00","Krymsk® 1 (VVA-1)  - Plum Rootstock - Bare Rooted",14,"2442"]
["Prunus Rtsk-00","Krymsk® 1 (VVA-1)  - Plum Rootstock - Bare Rooted",2,"2445"]
["Prunus Rtsk-00","Krymsk® 1 (VVA-1)  - Plum Rootstock - Bare Rooted",1,"2459"]
["Prunus Rtsk-00","Krymsk® 1 (VVA-1)  - Plum Rootstock - Bare Rooted",1,"2483"]
["Prunus Rtsk-00","Krymsk® 1 (VVA-1)  - Plum Rootstock - Bare Rooted",4,"2487"]
["Malus Rtsk-00","M116 ® - Apple Rootstock - Bare Rooted",40,"2378"]
["Malus Rtsk-00","M116 ® - Apple Rootstock - Bare Rooted",4,"2379"]
["Malus Rtsk-00","M116 ® - Apple Rootstock - Bare Rooted",10,"2426"]
["Malus Rtsk-00","M116 ® - Apple Rootstock - Bare Rooted",40,"2470"]
["Malus Rtsk-00","M116 ® - Apple Rootstock - Bare Rooted",3,"2474"]
["Malus Rtsk-00","M116 ® - Apple Rootstock - Bare Rooted",3,"2481"]
["Malus Rtsk-00","M25 - Apple Rootstock - Bare Rooted",15,"2392"]
["Malus Rtsk-00","M25 - Apple Rootstock - Bare Rooted",5,"2426"]
["Malus Rtsk-00","M25 - Apple Rootstock - Bare Rooted",15,"2439"]
["Malus Rtsk-00","M26 - Apple Rootstock - Bare Rooted",25,"2323"]
["Malus Rtsk-00","M26 - Apple Rootstock - Bare Rooted",5,"2328"]
["Malus Rtsk-00","M26 - Apple Rootstock - Bare Rooted",5,"2362"]
["Malus Rtsk-00","M26 - Apple Rootstock - Bare Rooted",5,"2399"]
["Malus Rtsk-00","M27 - Apple Rootstock - Bare Rooted",5,"2336"]
["Malus Rtsk-00","M27 - Apple Rootstock - Bare Rooted",4,"2337"]
["Malus Rtsk-00","M27 - Apple Rootstock - Bare Rooted",5,"2344"]
["Malus Rtsk-00","M27 - Apple Rootstock - Bare Rooted",4,"2377"]
["Malus Rtsk-00","M27 - Apple Rootstock - Bare Rooted",4,"2379"]
["Malus Rtsk-00","M27 - Apple Rootstock - Bare Rooted",9,"2418"]
["Malus Rtsk-00","M27 - Apple Rootstock - Bare Rooted",4,"2420"]
["Malus Rtsk-00","M27 - Apple Rootstock - Bare Rooted",4,"2459"]
["Malus Rtsk-00","M4 - Apple Rootstock - Bare Rooted",2,"2329"]
["Malus Rtsk-00","M7 - Apple Rootstock - Bare Rooted",2,"2329"]
["Malus Rtsk-00","M7 - Apple Rootstock - Bare Rooted",3,"2428"]
["Malus Rtsk-00","M9 - Apple Rootstock - Bare Rooted",5,"2335"]
["Malus Rtsk-00","M9 - Apple Rootstock - Bare Rooted",5,"2360"]
["Malus Rtsk-00","M9 - Apple Rootstock - Bare Rooted",5,"2379"]
["Malus Rtsk-00","M9 - Apple Rootstock - Bare Rooted",10,"2399"]
["Malus Rtsk-00","M9 - Apple Rootstock - Bare Rooted",5,"2410"]
["Malus Rtsk-00","M9 - Apple Rootstock - Bare Rooted",5,"2417"]
["Malus Rtsk-00","M9 - Apple Rootstock - Bare Rooted",7,"2424"]
["Malus Rtsk-00","M9 - Apple Rootstock - Bare Rooted",5,"2426"]
["Malus Rtsk-00","M9 - Apple Rootstock - Bare Rooted",13,"2467"]
["Malus Rtsk-00","M9 - Apple Rootstock - Bare Rooted",6,"2482"]
["Mespilus 3241-bank","Medlar - Iranian Medlar - Scion",7,"2435"]
["Mespilus 3167-bank","Medlar - Large Dutch - Scion",2,"2432"]
["Mespilus 3167-bank","Medlar - Large Dutch - Scion",2,"2484"]
["Mespilus bank-00","Medlar - Nottingham - Scion",3,"2432"]
["Mespilus bank-00","Medlar - Nottingham - Scion",1,"2469"]
["Mespilus 7398-bank","Medlar - Sultani - Scion",2,"2432"]
["Mespilus 7398-bank","Medlar - Sultani - Scion",2,"2466"]
["Malus Rtsk-00","MM106 - Apple Rootstock - Bare Rooted",10,"2323"]
["Malus Rtsk-00","MM106 - Apple Rootstock - Bare Rooted",5,"2329"]
["Malus Rtsk-00","MM106 - Apple Rootstock - Bare Rooted",5,"2351"]
["Malus Rtsk-00","MM106 - Apple Rootstock - Bare Rooted",5,"2384"]
["Malus Rtsk-00","MM106 - Apple Rootstock - Bare Rooted",5,"2399"]
["Malus Rtsk-00","MM106 - Apple Rootstock - Bare Rooted",10,"2422"]
["Malus Rtsk-00","MM106 - Apple Rootstock - Bare Rooted",60,"2439"]
["Malus Rtsk-00","MM111 - Apple Rootstock - Bare Rooted",12,"2386"]
["Malus Rtsk-00","MM111 - Apple Rootstock - Bare Rooted",5,"2399"]
["Pyrus 4931-I68","Pear - Akca - Scion",1,"2368"]
["Pyrus 4931-I68","Pear - Akca - Scion",1,"2429"]
["Pyrus 5482-I69","Pear - Amfora - Scion",1,"2343"]
["Pyrus 5482-I69","Pear - Amfora - Scion",1,"2347"]
["Pyrus 5482-I69","Pear - Amfora - Scion",1,"2368"]
["Pyrus 7014-BW","Pear - Ankara - Scion",1,"2346"]
["Pyrus 7014-BW","Pear - Ankara - Scion",1,"2347"]
["Pyrus 4286-00","Pear - Beth - Scion",1,"2325"]
["Pyrus 4286-00","Pear - Beth - Scion",1,"2473"]
["Pyrus 4558","Pear - Beurre Morettini - Scion",1,"2347"]
["Pyrus 4558","Pear - Beurre Morettini - Scion",1,"2363"]
["Pyrus 4558","Pear - Beurre Morettini - Scion",1,"2466"]
["Pyrus 4558","Pear - Beurre Morettini - Scion",1,"2490"]
["Pyrus 7120-T28 (7107)","Pear - Blanquilha - Scion",1,"2347"]
["Pyrus 7120-T28 (7107)","Pear - Blanquilha - Scion",1,"2490"]
["Pyrus 6909-1-79","Pear - Buerre (Butirra) Giffard - Scion",1,"2340"]
["Pyrus 6909-1-79","Pear - Buerre (Butirra) Giffard - Scion",2,"2352"]
["Pyrus 6909-1-79","Pear - Buerre (Butirra) Giffard - Scion",1,"2356"]
["Pyrus 6909-1-79","Pear - Buerre (Butirra) Giffard - Scion",1,"2359"]
["Pyrus 6909-1-79","Pear - Buerre (Butirra) Giffard - Scion",1,"2363"]
["Pyrus 6910","Pear - Butirra Ardenpoint - Scion",1,"2347"]
["Pyrus 6910","Pear - Butirra Ardenpoint - Scion",1,"2490"]
["Pyrus 4988-N3","Pear - Catillac - Scion",1,"2381"]
["Pyrus 4988-N3","Pear - Catillac - Scion",1,"2439"]
["Pyrus 1377-N31","Pear - Certeau d Automne - Scion",1,"2347"]
["Pyrus 4307-N08","Pear - Concorde - Scion",1,"2363"]
["Pyrus 4307-N08","Pear - Concorde - Scion",1,"2377"]
["Pyrus 4307-N08","Pear - Concorde - Scion",1,"2393"]
["Pyrus 7890-BW","Pear - Condo - Scion",1,"2490"]
["Pyrus 5492-J51","Pear - Desertnaja Rossosanskaja - Scion",1,"2486"]
["Pyrus 7891","Pear - Dessertbirne - Scion",1,"2466"]
["Pyrus 4929-I66","Pear - Deveci (Devici)- Scion",1,"2347"]
["Pyrus 4929-I66","Pear - Deveci (Devici)- Scion",1,"2466"]
["Pyrus 7053","Pear - Dicolor - Scion",4,"2341"]
["Pyrus 7053","Pear - Dicolor - Scion",1,"2347"]
["Pyrus 7053","Pear - Dicolor - Scion",2,"2366"]
["Pyrus 4957-BW00","Pear - Doyenne d Ete - Scion",1,"2346"]
["Pyrus 4957-BW00","Pear - Doyenne d Ete - Scion",1,"2363"]
["Pyrus 4957-BW00","Pear - Doyenne d Ete - Scion",1,"2393"]
["Pyrus 4547-H47","Pear - Eva Baltet - Scion",1,"2404"]
["Pyrus 4547-H47","Pear - Eva Baltet - Scion",1,"2409"]
["Pyrus 4547-H47","Pear - Eva Baltet - Scion",1,"2490"]
["Pyrus 7024-BW00","Pear - Faworytka - Scion",1,"2347"]
["Pyrus 7024-BW00","Pear - Faworytka - Scion",1,"2359"]
["Pyrus 7024-BW00","Pear - Faworytka - Scion",1,"2490"]
["Pyrus 4548-J34","Pear - Forelle - Scion",1,"2404"]
["Pyrus 7025-BW1/86","Pear - General Leclerc - Scion",1,"2409"]
["Pyrus 7025-BW1/86","Pear - General Leclerc - Scion",1,"2490"]
["Pyrus 1606-BW100","Pear - Ginn - Scion",1,"2347"]
["Pyrus 1606-BW100","Pear - Ginn - Scion",1,"2363"]
["Pyrus 1606-BW100","Pear - Ginn - Scion",2,"2413"]
["Pyrus 4278-N7","Pear - Harrow Sweet - Scion",1,"2347"]
["Pyrus 4278-N7","Pear - Harrow Sweet - Scion",1,"2356"]
["Pyrus 4278-N7","Pear - Harrow Sweet - Scion",1,"2367"]
["Pyrus 4278-N7","Pear - Harrow Sweet - Scion",1,"2485"]
["Pyrus 2261-BW92","Pear - Hendre Huff - Scion",1,"2363"]
["Pyrus 2261-BW92","Pear - Hendre Huff - Scion",2,"2392"]
["Pyrus 2261-BW92","Pear - Hendre Huff - Scion",2,"2413"]
["Pyrus 2261-BW92","Pear - Hendre Huff - Scion",2,"2447"]
["Pyrus 2261-BW92","Pear - Hendre Huff - Scion",1,"2485"]
["Pyrus 7121","Pear - Joaquina - Scion",1,"2347"]
["Pyrus 7471-BW00","Pear - Karahuseyin - Scion",1,"2346"]
["Pyrus 7471-BW00","Pear - Karahuseyin - Scion",1,"2347"]
["Pyrus 7471-BW00","Pear - Karahuseyin - Scion",1,"2359"]
["Pyrus 7471-BW00","Pear - Karahuseyin - Scion",1,"2490"]
["Pyrus 6375-000","Pear - Keiffer - Scion",1,"2346"]
["Pyrus 6375-000","Pear - Keiffer - Scion",1,"2366"]
["Pyrus 6375-000","Pear - Keiffer - Scion",1,"2490"]
["Pyrus 2370-N11","Pear - Lubecker Prinzessinbirne - Scion",1,"2359"]
["Pyrus 2370-N11","Pear - Lubecker Prinzessinbirne - Scion",1,"2374"]
["Pyrus 2370-N11","Pear - Lubecker Prinzessinbirne - Scion",1,"2384"]
["Pyrus 2370-N11","Pear - Lubecker Prinzessinbirne - Scion",1,"2404"]
["Pyrus 2370-N11","Pear - Lubecker Prinzessinbirne - Scion",1,"2475"]
["Pyrus 2370-N11","Pear - Lubecker Prinzessinbirne - Scion",1,"2490"]
["Pyrus 7585/BW1/52","Pear - Merton Pride - Scion",1,"2377"]
["Pyrus 5392-N62","Pear - Mramornaja - Scion",1,"2347"]
["Pyrus 6935-BW","Pear - Mustafa Bey - Scion",1,"2346"]
["Pyrus 6935-BW","Pear - Mustafa Bey - Scion",1,"2347"]
["Pyrus 6935-BW","Pear - Mustafa Bey - Scion",1,"2359"]
["Pyrus 4318-J41","Pear - Nobili - Scion",1,"2347"]
["Pyrus 2461-000","Pear - Old Home LARS - Scion",1,"2347"]
["Pyrus 2461-000","Pear - Old Home LARS - Scion",1,"2466"]
["Pyrus 7475-BW00","Pear - Orak (Orca) - Scion",1,"2347"]
["Pyrus 7052-BW","Pear - Paten (Patten) - Scion",4,"2341"]
["Pyrus 7052-BW","Pear - Paten (Patten) - Scion",1,"2347"]
["Pyrus 7052-BW","Pear - Paten (Patten) - Scion",1,"2366"]
["Pyrus 7906-BW","Pear - Pepi - Scion",1,"2347"]
["Pyrus 7906-BW","Pear - Pepi - Scion",1,"2359"]
["Pyrus 7906-BW","Pear - Pepi - Scion",1,"2466"]
["Pyrus 7074-BW","Pear - Pimaston Duchess - Scion",1,"2343"]
["Pyrus 7074-BW","Pear - Pimaston Duchess - Scion",1,"2374"]
["Pyrus 7074-BW","Pear - Pimaston Duchess - Scion",1,"2377"]
["Pyrus 7074-BW","Pear - Pimaston Duchess - Scion",1,"2406"]
["Pyrus 7074-BW","Pear - Pimaston Duchess - Scion",1,"2416"]
["Pyrus 7074-BW","Pear - Pimaston Duchess - Scion",1,"2429"]
["Pyrus 4958-BW103","Pear - Potatoe - Scion",1,"2347"]
["Pyrus 4958-BW103","Pear - Potatoe - Scion",1,"2392"]
["Pyrus 4958-BW103","Pear - Potatoe - Scion",2,"2413"]
["Pyrus 4320-J44","Pear - Principessa Gonzaga - Scion",1,"2409"]
["Pyrus 2463-BW96","Pear - Red - Scion",1,"2392"]
["Pyrus 6934-BW","Pear - Riza Bey - Scion",1,"2347"]
["Pyrus 6934-BW","Pear - Riza Bey - Scion",1,"2466"]
["Pyrus 5483-J52","Pear - Russkaja Krasavica - Scion",1,"2485"]
["Pyrus 5483-J52","Pear - Russkaja Krasavica - Scion",1,"2490"]
["Pyrus 2372-N12","Pear - Schweizerhose - Scion",2,"2387"]
["Pyrus 2372-N12","Pear - Schweizerhose - Scion",1,"2473"]
["Pyrus 7024-BW","Pear - Souvenir - Scion",1,"2346"]
["Pyrus 7024-BW","Pear - Souvenir - Scion",1,"2347"]
["Pyrus 1465-BW97","Pear - Taynton Squash - Scion",1,"2347"]
["Pyrus 1465-BW97","Pear - Taynton Squash - Scion",2,"2392"]
["Pyrus 1465-BW97","Pear - Taynton Squash - Scion",2,"2413"]
["Pyrus 1465-BW97","Pear - Taynton Squash - Scion",1,"2429"]
["Pyrus 1465-BW97","Pear - Taynton Squash - Scion",2,"2447"]
["Pyrus 6332-H49","Pear - Uta - Scion",1,"2346"]
["Pyrus 7587-BW","Pear - Verbelu - Scion",1,"2347"]
["Pyrus 7587-BW","Pear - Verbelu - Scion",1,"2484"]
["Pyrus 5249-000","Pear - Warren - Scion",4,"2341"]
["Pyrus 5249-000","Pear - Warren - Scion",1,"2347"]
["Pyrus 5249-000","Pear - Warren - Scion",1,"2366"]
["Pyrus 2713-N01","Pear - Williams' Bon Chretien - Scion",1,"2363"]
["Pyrus 2713-N01","Pear - Williams' Bon Chretien - Scion",1,"2367"]
["Pyrus 2713-N01","Pear - Williams' Bon Chretien - Scion",1,"2393"]
["Pyrus 2713-N01","Pear - Williams' Bon Chretien - Scion",1,"2406"]
["Pyrus 2713-N01","Pear - Williams' Bon Chretien - Scion",1,"2459"]
["Pyrus 2713-N01","Pear - Williams' Bon Chretien - Scion",1,"2475"]
["Pyrus 1603/2466-BW93","Pear - Winnals Longdon - Scion",4,"2341"]
["Pyrus 1603/2466-BW93","Pear - Winnals Longdon - Scion",2,"2392"]
["Pyrus 1603/2466-BW93","Pear - Winnals Longdon - Scion",1,"2484"]
["Diospyros 0000-00","Persimmon - Cioccolatino (chocolate) - Scions",1,"2382"]
["Diospyros 0000-00","Persimmon - Cioccolatino (chocolate) - Scions",1,"2416"]
["Diospyros 0000-00","Persimmon - Cioccolatino (chocolate) - Scions",1,"2418"]
["Diospyros 0000-00","Persimmon - Cioccolatino (chocolate) - Scions",2,"2463"]
["Diospyros 0000-00","Persimmon - Hiratanesnashi - Scions",2,"2342"]
["Diospyros 0000-00","Persimmon - Hiratanesnashi - Scions",1,"2416"]
["Diospyros 0000-00","Persimmon - Rojo Brillante - Scions",2,"2342"]
["Diospyros 0000-00","Persimmon - Rojo Brillante - Scions",1,"2382"]
["Diospyros 0000-00","Persimmon - Rojo Brillante - Scions",1,"2416"]
["Diospyros 0000-00","Persimmon - Rojo Brillante - Scions",1,"2418"]
["Prunus 2533-BW19","Plum - Anna Spath - Scion",2,"2348"]
["Prunus 2533-BW19","Plum - Anna Spath - Scion",1,"2356"]
["Prunus 2533-BW19","Plum - Anna Spath - Scion",1,"2363"]
["Prunus 2533-BW19","Plum - Anna Spath - Scion",1,"2409"]
["Prunus 1838-BW14","Plum - Apricot - Scion",1,"2373"]
["Prunus 1838-BW14","Plum - Apricot - Scion",1,"2409"]
["Prunus 4224-00","Plum - Belgian Purple - Scion",1,"2367"]
["Prunus 4303-PA8","Plum - Czar - Scion",2,"2348"]
["Prunus 4303-PA8","Plum - Czar - Scion",1,"2356"]
["Prunus 4303-PA8","Plum - Czar - Scion",1,"2363"]
["Prunus 4303-PA8","Plum - Czar - Scion",1,"2382"]
["Prunus  3579","Plum - Guinevere - Scion",1,"2325"]
["Prunus  3579","Plum - Guinevere - Scion",1,"2346"]
["Prunus  3579","Plum - Guinevere - Scion",1,"2363"]
["Prunus  3579","Plum - Guinevere - Scion",1,"2377"]
["Prunus  3579","Plum - Guinevere - Scion",1,"2404"]
["Prunus  3579","Plum - Guinevere - Scion",1,"2476"]
["Prunus 1675-PA6","Plum - Herman - Scion",1,"2340"]
["Prunus 1675-PA6","Plum - Herman - Scion",1,"2351"]
["Prunus 1675-PA6","Plum - Herman - Scion",1,"2404"]
["Prunus 1675-PA6","Plum - Herman - Scion",1,"2438"]
["Prunus 1675-PA6","Plum - Herman - Scion",1,"2475"]
["Prunus 924-O28","Plum - Mirabelle - Scion",1,"2367"]
["Prunus 924-O28","Plum - Mirabelle - Scion",1,"2377"]
["Prunus 924-O28","Plum - Mirabelle - Scion",1,"2380"]
["Prunus 924-O28","Plum - Mirabelle - Scion",1,"2404"]
["Prunus 924-O28","Plum - Mirabelle - Scion",1,"2429"]
["Prunus 924-O28","Plum - Mirabelle - Scion",1,"2438"]
["Prunus 924-O28","Plum - Mirabelle - Scion",1,"2475"]
["Prunus 4119-PA12","Plum - Opal - Scion",1,"2351"]
["Prunus 4119-PA12","Plum - Opal - Scion",1,"2359"]
["Prunus 4119-PA12","Plum - Opal - Scion",1,"2381"]
["Prunus 4119-PA12","Plum - Opal - Scion",1,"2397"]
["Prunus 4119-PA12","Plum - Opal - Scion",1,"2439"]
["Prunus 4119-PA12","Plum - Opal - Scion",1,"2459"]
["Prunus 1234-PA27","Plum - President - Scion",1,"2356"]
["Prunus 1234-PA27","Plum - President - Scion",1,"2409"]
["Prunus 1740-BW10","Plum - Reine-claude d Oullins - Scion",1,"2380"]
["Prunus  6557-BW","Plum - Swan - Scion",1,"2335"]
["Prunus  6557-BW","Plum - Swan - Scion",1,"2363"]
["Prunus  6557-BW","Plum - Swan - Scion",1,"2367"]
["Prunus 7666-BW","Plum - Sweet Amers - Scion",1,"2398"]
["Prunus 7666-BW","Plum - Sweet Amers - Scion",1,"2409"]
["Prunus 4305-PA14","Plum - Warwickshire Drooper - Scion",3,"2346"]
["Prunus 4305-PA14","Plum - Warwickshire Drooper - Scion",1,"2351"]
["Prunus 4305-PA14","Plum - Warwickshire Drooper - Scion",1,"2356"]
["Prunus 4305-PA14","Plum - Warwickshire Drooper - Scion",1,"2380"]
["Prunus 4305-PA14","Plum - Warwickshire Drooper - Scion",2,"2387"]
["Prunus 4305-PA14","Plum - Warwickshire Drooper - Scion",2,"2390"]
["Pyrus Rtsk-00","Pyrodwarf® - Pear Rootstock - Bare Rooted",2,"2458"]
["Pyrus Rtsk-00","Pyrus OHXF87™ - Pear Rootstock - Bare Rooted",1,"2374"]
["Pyrus Rtsk-00","Pyrus OHXF87™ - Pear Rootstock - Bare Rooted",3,"2377"]
["Pyrus Rtsk-00","Pyrus OHXF87™ - Pear Rootstock - Bare Rooted",5,"2418"]
["Pyrus Rtsk-00","Pyrus OHXF87™ - Pear Rootstock - Bare Rooted",2,"2424"]
["Pyrus Rtsk-00","Pyrus OHXF87™ - Pear Rootstock - Bare Rooted",40,"2458"]
["Pyrus Rtsk-00","Pyrus OHXF87™ - Pear Rootstock - Bare Rooted",3,"2464"]
["Pyrus Rtsk-00","Pyrus OHXF87™ - Pear Rootstock - Bare Rooted",2,"2473"]
["Cydonia 4940/5214-Y26","Quince - Aurelia - Scion",1,"2427"]
["Cydonia 4940/5214-Y26","Quince - Aurelia - Scion",1,"2444"]
["Cydonia 4941","Quince - Bencikli - Scion",2,"2015"]
["Cydonia 4941","Quince - Bencikli - Scion",1,"2340"]
["Cydonia 4942","Quince - Cukurgobek (Cukurgöbek) - Scion",1,"2444"]
["Cydonia 4968-Y29","Quince - Ege 22 - Scion",1,"2444"]
["Cydonia 4968-Y29","Quince - Ege 22 - Scion",1,"2483"]
["Cydonia 6061-00","Quince - Krymsk (Aromatnaya) - Scion",1,"2332"]
["Cydonia 6061-00","Quince - Krymsk (Aromatnaya) - Scion",1,"2343"]
["Cydonia 6061-00","Quince - Krymsk (Aromatnaya) - Scion",1,"2427"]
["Cydonia 6061-00","Quince - Krymsk (Aromatnaya) - Scion",1,"2439"]
["Cydonia 6061-00","Quince - Krymsk (Aromatnaya) - Scion",1,"2444"]
["Cydonia 6061-00","Quince - Krymsk (Aromatnaya) - Scion",1,"2483"]
["Cydonia 4967-Y28","Quince - Limon - Scion",1,"2340"]
["Cydonia 4967-Y28","Quince - Limon - Scion",1,"2427"]
["Cydonia 4967-Y28","Quince - Limon - Scion",1,"2439"]
["Cydonia 4967-Y28","Quince - Limon - Scion",1,"2484"]
["Cydonia 4948","Quince - Muskatnaja - Scion",1,"2340"]
["Cydonia 4948","Quince - Muskatnaja - Scion",1,"2444"]
["Cydonia 4948","Quince - Muskatnaja - Scion",2,"2466"]
["Cydonia 4948","Quince - Muskatnaja - Scion",1,"2484"]
["Cydonia bank-00","Quince - Vranja - Scion",2,"2015"]
["Cydonia 2738-00","Quince - Wudonia - Scion",1,"2343"]
["Cydonia 2738-00","Quince - Wudonia - Scion",1,"2427"]
["Cydonia Rtsk-00","Quince A - Pear Rootstock - Bare Rooted",1,"2374"]
["Cydonia Rtsk-00","Quince A - Pear Rootstock - Bare Rooted",8,"2392"]
["Cydonia Rtsk-00","Quince A - Pear Rootstock - Bare Rooted",18,"2439"]
["Cydonia Rtsk-00","Quince BA - Pear Rootstock - Bare Rooted",5,"2369"]
["Cydonia Rtsk-00","Quince C - Pear Rootstock - Bare Rooted",5,"2343"]
["Cydonia Rtsk-00","Quince C - Pear Rootstock - Bare Rooted",5,"2377"]
["Cydonia Rtsk-00","Quince C - Pear Rootstock - Bare Rooted",5,"2381"]
["Cydonia Rtsk-00","Quince C - Pear Rootstock - Bare Rooted",5,"2383"]
["Cydonia Rtsk-00","Quince C - Pear Rootstock - Bare Rooted",6,"2386"]
["Cydonia Rtsk-00","Quince C - Pear Rootstock - Bare Rooted",5,"2438"]
["Cydonia Rtsk-00","Quince C - Pear Rootstock - Bare Rooted",5,"2444"]
["Cydonia Rtsk-00","Quince C - Pear Rootstock - Bare Rooted",5,"2483"]
["Cydonia Rtsk-00","Quince C - Pear Rootstock - Bare Rooted",6,"2484"]
["Cydonia Rtsk-00","Quince 'Eline®' - Pear Rootstock - Bare Rooted",4,"2015"]
["Prunus Rtsk-00","St Julian A - Plum Rootstock - Bare Rooted",20,"2025"]
["Prunus Rtsk-00","St Julian A - Plum Rootstock - Bare Rooted",5,"2355"]
["Prunus Rtsk-00","St Julian A - Plum Rootstock - Bare Rooted",6,"2390"]
["Prunus Rtsk-00","St Julian A - Plum Rootstock - Bare Rooted",5,"2397"]
["Prunus Rtsk-00","St Julian A - Plum Rootstock - Bare Rooted",5,"2437"]
["Malus Rtsk-00","Supporter® 4 (PI80) - Apple Rootstock - Bare Rooted",5,"2329"]
["Malus Rtsk-00","Supporter® 4 (PI80) - Apple Rootstock - Bare Rooted",6,"2347"]
["Malus Rtsk-00","Supporter® 4 (PI80) - Apple Rootstock - Bare Rooted",5,"2365"]
["Malus Rtsk-00","Supporter® 4 (PI80) - Apple Rootstock - Bare Rooted",1,"2374"]
["Juglans  898-bank","Walnut - Rode Doneau - Scion",10,"2403"]
["Prunus Rtsk-00","WUR S766 - Plum (Prunus) Rootstock - Bare Rooted",1,"2335"]
["Prunus Rtsk-00","WUR S766 - Plum (Prunus) Rootstock - Bare Rooted",4,"2348"]
["Prunus Rtsk-00","WUR S766 - Plum (Prunus) Rootstock - Bare Rooted",1,"2373"]
["Prunus Rtsk-00","WUR S766 - Plum (Prunus) Rootstock - Bare Rooted",5,"2485"]

{"sheet":" master data","index":1,"n_rows":1011,"n_cols":4,"rows_kept":1011,"cut":false,"hidden":false,"merged":[]}
["Product Reference","Product Name","Product Quantity","Order ID"]
[null,"10 x Grafting Package",1,"2344"]
[null,"10 x Grafting Package",1,"2358"]
[null,"10 x Grafting Package",1,"2398"]
[null,"10 x Grafting Package",1,"2401"]
[null,"10 x Grafting Package",1,"2406"]
[null,"10 x Grafting Package",1,"2420"]
[null,"10 x Grafting Package",1,"2427"]
[null,"100 x Grafting Package",1,"2387"]
[null,"100 x Grafting Package",1,"2451"]
[null,"50 x Grafting Package",1,"2323"]
["Malus 1705-000","Apple - Acme - Scion",2,"2357"]
["Malus 1705-000","Apple - Acme - Scion",1,"2399"]
["Malus 8684","Apple - Adams Pearmain - Barerooted",1,"2431"]
["Malus 833-J18","Apple - Adams Pearmain - Scion",1,"2329"]
["Malus 833-J18","Apple - Adams Pearmain - Scion",1,"2334"]
["Malus 833-J18","Apple - Adams Pearmain - Scion",1,"2354"]
["Malus 833-J18","Apple - Adams Pearmain - Scion",1,"2356"]
["Malus 833-J18","Apple - Adams Pearmain - Scion",1,"2384"]
["Malus 833-J18","Apple - Adams Pearmain - Scion",1,"2416"]
["Malus 833-J18","Apple - Adams Pearmain - Scion",1,"2417"]
["Malus 833-J18","Apple - Adams Pearmain - Scion",1,"2423"]
["Malus 833-J18","Apple - Adams Pearmain - Scion",2,"2428"]
["Malus 3550-I53","Apple - All Doer - Scion",1,"2399"]
["Malus 3550-I53","Apple - All Doer - Scion",1,"2430"]
["Malus 5026-HL29","Apple - Amanda - Scion",1,"2356"]
["Malus 5026-HL29","Apple - Amanda - Scion",1,"2467"]
["Malus 1613-J15","Apple - American Mother - Scion",1,"2462"]
["Malus 3750-HL11","Apple - Annie Elizabeth - Scion",1,"2363"]
["Malus 4928-F69","Apple - Arap Kizi 'Arabian Girl' - Scion",1,"2350"]
["Malus 4928-F69","Apple - Arap Kizi 'Arabian Girl' - Scion",1,"2399"]
["Malus 2962-U10","Apple - Aroma - Scion",1,"2350"]
["Malus 2962-U10","Apple - Aroma - Scion",2,"2357"]
["Malus 2962-U10","Apple - Aroma - Scion",1,"2363"]
["Malus 800-D09","Apple - Arthur Turner - Scion",1,"2329"]
["Malus 800-D09","Apple - Arthur Turner - Scion",1,"2336"]
["Malus 800-D09","Apple - Arthur Turner - Scion",1,"2337"]
["Malus 800-D09","Apple - Arthur Turner - Scion",1,"2381"]
["Malus 800-D09","Apple - Arthur Turner - Scion",1,"2473"]
["Malus 8773","Apple - Ashmeads Kernel - Barerooted",1,"2434"]
["Malus 3616-U29","Apple - Ashmeads Kernel - Scion",1,"2323"]
["Malus 3616-U29","Apple - Ashmeads Kernel - Scion",1,"2325"]
["Malus 3616-U29","Apple - Ashmeads Kernel - Scion",1,"2360"]
["Malus 3616-U29","Apple - Ashmeads Kernel - Scion",1,"2417"]
["Malus 3616-U29","Apple - Ashmeads Kernel - Scion",1,"2464"]
["Malus 3616-U29","Apple - Ashmeads Kernel - Scion",1,"2479"]
["Malus 5641-X30","Apple - Autumn Arctic - Scion",1,"2363"]
["Malus 5641-X30","Apple - Autumn Arctic - Scion",1,"2368"]
["Malus 5641-X30","Apple - Autumn Arctic - Scion",1,"2399"]
["Malus 1072-L11","Apple - Bakers Delicious - Scion",1,"2323"]
["Malus 1072-L11","Apple - Bakers Delicious - Scion",1,"2354"]
["Malus 1072-L11","Apple - Bakers Delicious - Scion",1,"2356"]
["Malus 1072-L11","Apple - Bakers Delicious - Scion",1,"2416"]
["Malus 1072-L11","Apple - Bakers Delicious - Scion",1,"2430"]
["Malus 1072-L11","Apple - Bakers Delicious - Scion",1,"2443"]
["Malus 1072-L11","Apple - Bakers Delicious - Scion",1,"2459"]
["Malus 1072-L11","Apple - Bakers Delicious - Scion",1,"2486"]
["Malus 4900-W7","Apple - Bakran - Scion",1,"2327"]
["Malus 4900-W7","Apple - Bakran - Scion",1,"2343"]
["Malus 4900-W7","Apple - Bakran - Scion",1,"2356"]
["Malus 4900-W7","Apple - Bakran - Scion",1,"2358"]
["Malus 4900-W7","Apple - Bakran - Scion",1,"2365"]
["Malus 4900-W7","Apple - Bakran - Scion",1,"2374"]
["Malus 4900-W7","Apple - Bakran - Scion",4,"2387"]
["Malus 4900-W7","Apple - Bakran - Scion",2,"2392"]
["Malus 4900-W7","Apple - Bakran - Scion",1,"2399"]
["Malus 4900-W7","Apple - Bakran - Scion",1,"2418"]
["Malus 4900-W7","Apple - Bakran - Scion",1,"2428"]
["Malus 4900-W7","Apple - Bakran - Scion",1,"2438"]
["Malus 4900-W7","Apple - Bakran - Scion",5,"2440"]
["Malus 4900-W7","Apple - Bakran - Scion",2,"2447"]
["Malus 4900-W7","Apple - Bakran - Scion",1,"2455"]
["Malus 4900-W7","Apple - Bakran - Scion",1,"2456"]
["Malus 4900-W7","Apple - Bakran - Scion",1,"2462"]
["Malus 4900-W7","Apple - Bakran - Scion",1,"2467"]
["Malus 4900-W7","Apple - Bakran - Scion",3,"2470"]
["Malus 2818-Q09","Apple - Bardsey - Scion",1,"2380"]
["Malus 2818-Q09","Apple - Bardsey - Scion",4,"2386"]
["Malus 2818-Q09","Apple - Bardsey - Scion",1,"2464"]
["Malus 2818-Q09","Apple - Bardsey - Scion",1,"2485"]
["Malus 3749-HL07","Apple - Barnack Orange - Scion",1,"2326"]
["Malus 3749-HL07","Apple - Barnack Orange - Scion",1,"2343"]
["Malus 3749-HL07","Apple - Barnack Orange - Scion",1,"2350"]
["Malus 3749-HL07","Apple - Barnack Orange - Scion",1,"2399"]
["Malus 3749-HL07","Apple - Barnack Orange - Scion",1,"2464"]
["Malus 3749-HL07","Apple - Barnack Orange - Scion",1,"2485"]
["Malus 5328-W25","Apple - Batul - Scion",1,"2336"]
["Malus 5328-W25","Apple - Batul - Scion",1,"2337"]
["Malus 5328-W25","Apple - Batul - Scion",1,"2456"]
["Malus 5328-W25","Apple - Batul - Scion",1,"2462"]
["Malus 5328-W25","Apple - Batul - Scion",1,"2473"]
["Malus 1704-O17","Apple - Beauty of Bath - Scion",1,"2323"]
["Malus 1704-O17","Apple - Beauty of Bath - Scion",1,"2329"]
["Malus 1704-O17","Apple - Beauty of Bath - Scion",1,"2381"]
["Malus 1704-O17","Apple - Beauty of Bath - Scion",1,"2434"]
["Malus 1704-O17","Apple - Beauty of Bath - Scion",1,"2456"]
["Malus 1704-O17","Apple - Beauty of Bath - Scion",2,"2473"]
["Malus 1746-P08","Apple - Bec d Oie - Scion",1,"2363"]
["Malus 1718-P04","Apple - Benoni - Scion",1,"2365"]
["Malus 1718-P04","Apple - Benoni - Scion",1,"2399"]
["Malus 1021-Q38","Apple - Ben's Red - Scion",1,"2323"]
["Malus 1021-Q38","Apple - Ben's Red - Scion",1,"2467"]
["Malus 1707-O21","Apple - Blood Royal - Scion",1,"2399"]
["Malus 1707-O21","Apple - Blood Royal - Scion",1,"2459"]
["Malus 1707-O21","Apple - Blood Royal - Scion",1,"2482"]
["Malus 1707-O21","Apple - Blood Royal - Scion",1,"2485"]
["Malus 2285-BW32","Apple - Bloody Ploughman - Scion",1,"2323"]
["Malus 2285-BW32","Apple - Bloody Ploughman - Scion",1,"2343"]
["Malus 2285-BW32","Apple - Bloody Ploughman - Scion",2,"2357"]
["Malus 2285-BW32","Apple - Bloody Ploughman - Scion",1,"2374"]
["Malus 2285-BW32","Apple - Bloody Ploughman - Scion",1,"2384"]
["Malus 2285-BW32","Apple - Bloody Ploughman - Scion",2,"2392"]
["Malus 2285-BW32","Apple - Bloody Ploughman - Scion",1,"2416"]
["Malus 2285-BW32","Apple - Bloody Ploughman - Scion",1,"2418"]
["Malus 2285-BW32","Apple - Bloody Ploughman - Scion",2,"2428"]
["Malus 2285-BW32","Apple - Bloody Ploughman - Scion",1,"2438"]
["Malus 2285-BW32","Apple - Bloody Ploughman - Scion",1,"2456"]
["Malus 2285-BW32","Apple - Bloody Ploughman - Scion",1,"2464"]
["Malus 2285-BW32","Apple - Bloody Ploughman - Scion",1,"2467"]
["Malus 2285-BW32","Apple - Bloody Ploughman - Scion",3,"2470"]
["Malus 2285-BW32","Apple - Bloody Ploughman - Scion",1,"2485"]
["Malus 1235-J39","Apple - Braeburn - Scion",1,"2374"]
["Malus 1235-J39","Apple - Braeburn - Scion",1,"2459"]
["Malus 1235-J39","Apple - Braeburn - Scion",1,"2467"]
["Malus 1235-J39","Apple - Braeburn - Scion",2,"2479"]
["Malus 1235-J39","Apple - Braeburn - Scion",1,"2482"]
["Malus 792-D1","Apple - Bramley - Scion",1,"2329"]
["Malus 792-D1","Apple - Bramley - Scion",1,"2336"]
["Malus 792-D1","Apple - Bramley - Scion",1,"2337"]
["Malus 792-D1","Apple - Bramley - Scion",1,"2374"]
["Malus 792-D1","Apple - Bramley - Scion",1,"2418"]
["Malus 1086-J28","Apple - Bramley Clone 20 - Scion",1,"2351"]
["Malus 1086-J28","Apple - Bramley Clone 20 - Scion",1,"2365"]
["Malus 5021-HL37","Apple - Breakwells Seedling - Scion",1,"2343"]
["Malus 5021-HL37","Apple - Breakwells Seedling - Scion",2,"2392"]
["Malus 5021-HL37","Apple - Breakwells Seedling - Scion",1,"2426"]
["Malus","Apple - Bundle of 10 Random Varieties named - Scion",1,"2429"]
["Malus","Apple - Bundle of 10 Random Varieties unnamed - Scion",2,"2396"]
["Malus","Apple - Bundle of 5 Random Varieties named - Scion",1,"2344"]
["Malus","Apple - Bundle of 5 Random Varieties named - Scion",1,"2406"]
["Malus 5027-HL28","Apple - Captain Broad - Scion",2,"2434"]
["Malus 5252-HL23","Apple - Charden - Scion",3,"2353"]
["Malus 5252-HL23","Apple - Charden - Scion",1,"2456"]
["Malus 1629-O01","Apple - Charles Ross - Scion",1,"2326"]
["Malus 1629-O01","Apple - Charles Ross - Scion",2,"2357"]
["Malus 1629-O01","Apple - Charles Ross - Scion",4,"2386"]
["Malus 1076-L16","Apple - Christmas Pearmain - Scion",1,"2323"]
["Malus 1076-L16","Apple - Christmas Pearmain - Scion",1,"2325"]
["Malus 1816-BW46","Apple - Cidor - Scion",1,"2363"]
["Malus 1816-BW46","Apple - Cidor - Scion",2,"2392"]
["Malus 1816-BW46","Apple - Cidor - Scion",1,"2426"]
["Malus 1816-BW46","Apple - Cidor - Scion",1,"2482"]
["Malus 5264-HL20","Apple - Cigany Alma - Scion",1,"2329"]
["Malus 5264-HL20","Apple - Cigany Alma - Scion",1,"2356"]
["Malus 5264-HL20","Apple - Cigany Alma - Scion",1,"2365"]
["Malus 5264-HL20","Apple - Cigany Alma - Scion",1,"2467"]
["Malus 5264-HL20","Apple - Cigany Alma - Scion",1,"2485"]
["Malus 1700-O19","Apple - Coeur de Boeuf - Scion",1,"2363"]
["Malus 1700-O19","Apple - Coeur de Boeuf - Scion",1,"2486"]
["Malus 2806-BW23","Apple - Cornish Pine - Scion",3,"2376"]
["Malus 2806-BW23","Apple - Cornish Pine - Scion",1,"2466"]
["Malus 1078-J13","Apple - Court of Wick - Scion",1,"2325"]
["Malus 1078-J13","Apple - Court of Wick - Scion",1,"2349"]
["Malus 1277-O25","Apple - Cox's Pomona - Scion",1,"2326"]
["Malus 1277-O25","Apple - Cox's Pomona - Scion",2,"2357"]
["Malus 1277-O25","Apple - Cox's Pomona - Scion",1,"2363"]
["Malus 1277-O25","Apple - Cox's Pomona - Scion",2,"2392"]
["Malus 1454-BW81","Apple - Crimson King - Scion",2,"2400"]
["Malus 1454-BW81","Apple - Crimson King - Scion",1,"2434"]
["Malus 1454-BW81","Apple - Crimson King - Scion",1,"2464"]
["Malus 1454-BW81","Apple - Crimson King - Scion",1,"2467"]
["Malus 1073-J21","Apple - D'arcy Spice - Scion",1,"2326"]
["Malus 1073-J21","Apple - D'arcy Spice - Scion",1,"2351"]
["Malus 1073-J21","Apple - D'arcy Spice - Scion",1,"2393"]
["Malus 1073-J21","Apple - D'arcy Spice - Scion",1,"2443"]
["Malus 1073-J21","Apple - D'arcy Spice - Scion",1,"2456"]
["Malus 1073-J21","Apple - D'arcy Spice - Scion",1,"2473"]
["Malus 5266-HL19","Apple - Daru Alma - Scion",1,"2485"]
["Malus 1612-P25","Apple - Discovery - Scion",1,"2329"]
["Malus 1612-P25","Apple - Discovery - Scion",1,"2333"]
["Malus 1612-P25","Apple - Discovery - Scion",1,"2360"]
["Malus 1612-P25","Apple - Discovery - Scion",1,"2404"]
["Malus 1612-P25","Apple - Discovery - Scion",1,"2459"]
["Malus 5116-HL24","Apple - Douce Coet Ligne - Scion",4,"2375"]
["Malus 5116-HL24","Apple - Douce Coet Ligne - Scion",1,"2404"]
["Malus 1818","Apple - Douce Moen - Scion",1,"2404"]
["Malus 3751-HL09","Apple - Dumelows Seedling - Scion",1,"2330"]
["Malus 3751-HL09","Apple - Dumelows Seedling - Scion",1,"2351"]
["Malus 3751-HL09","Apple - Dumelows Seedling - Scion",1,"2363"]
["Malus 3751-HL09","Apple - Dumelows Seedling - Scion",1,"2466"]
["Malus 5030-HL32","Apple - Ellisons Orange - Scion",1,"2329"]
["Malus 5030-HL32","Apple - Ellisons Orange - Scion",1,"2330"]
["Malus 5030-HL32","Apple - Ellisons Orange - Scion",2,"2357"]
["Malus 5030-HL32","Apple - Ellisons Orange - Scion",1,"2358"]
["Malus 5030-HL32","Apple - Ellisons Orange - Scion",1,"2393"]
["Malus 5030-HL32","Apple - Ellisons Orange - Scion",1,"2486"]
["Malus 1080-L15","Apple - Elstar - Scion",1,"2363"]
["Malus 1080-L15","Apple - Elstar - Scion",1,"2393"]
["Malus 1080-L15","Apple - Elstar - Scion",1,"2399"]
["Malus 5141-W32","Apple - First and Last - Scion",1,"2380"]
["Malus 5141-W32","Apple - First and Last - Scion",1,"2399"]
["Malus 5023-HL33","Apple - Frederick - Scion",20,"2411"]
["Malus 2442-G24","Apple - Frequin Tardive de La Sarthe - Scion",1,"2363"]
["Malus 2442-G24","Apple - Frequin Tardive de La Sarthe - Scion",2,"2400"]
["Malus 2442-G24","Apple - Frequin Tardive de La Sarthe - Scion",1,"2426"]
["Malus 5640-","Apple - Freyburg - Scion",1,"2326"]
["Malus 5640-","Apple - Freyburg - Scion",1,"2455"]
["Malus 7598-BW","Apple - Fuji - Scion",1,"2330"]
["Malus 7598-BW","Apple - Fuji - Scion",1,"2377"]
["Malus 7598-BW","Apple - Fuji - Scion",4,"2395"]
["Malus 1356-O05","Apple - Gala - Scion",1,"2327"]
["Malus 1356-O05","Apple - Gala - Scion",1,"2334"]
["Malus 2444-G19","Apple - Gloria Mundi - Scion",1,"2490"]
["Malus 4954-HL49","Apple - Gloucestershire Costard - Scion",1,"2423"]
["Malus 5253-HL22","Apple - Golden Delicious - Scion",1,"2393"]
["Malus 2659-O14","Apple - Golden Glow - Scion",1,"2399"]
["Malus 5254-HL18","Apple - Golden Li - Scion",1,"2438"]
["Malus 1318-Q07","Apple - Golden Russet of Western New York - Scion",1,"2322"]
["Malus 1318-Q07","Apple - Golden Russet of Western New York - Scion",1,"2330"]
["Malus 1318-Q07","Apple - Golden Russet of Western New York - Scion",1,"2333"]
["Malus 1318-Q07","Apple - Golden Russet of Western New York - Scion",1,"2334"]
["Malus 1318-Q07","Apple - Golden Russet of Western New York - Scion",1,"2393"]
["Malus 1318-Q07","Apple - Golden Russet of Western New York - Scion",1,"2414"]
["Malus 1318-Q07","Apple - Golden Russet of Western New York - Scion",1,"2423"]
["Malus 1318-Q07","Apple - Golden Russet of Western New York - Scion",1,"2474"]
["Malus 4282-I55","Apple - Granny Smith - Scion",1,"2335"]
["Malus 4282-I55","Apple - Granny Smith - Scion",2,"2392"]
["Malus 3600-U25","Apple - Grasten Sabygard - Scion",1,"2323"]
["Malus 3600-U25","Apple - Grasten Sabygard - Scion",1,"2414"]
["Malus 3600-U25","Apple - Grasten Sabygard - Scion",1,"2416"]
["Malus 3600-U25","Apple - Grasten Sabygard - Scion",1,"2490"]
["Malus 1677-A07","Apple - Greensleeves - Scion",1,"2335"]
["Malus 1677-A07","Apple - Greensleeves - Scion",1,"2418"]
["Malus 2446-G16","Apple - Hagloe Crab - Scion",2,"2400"]
["Malus 3221-U20","Apple - Hans Wassard - Scion",1,"2346"]
["Malus 3221-U20","Apple - Hans Wassard - Scion",1,"2414"]
["Malus 5021-HL38","Apple - Harry Masters Jersey - Scion",2,"2392"]
["Malus 5021-HL38","Apple - Harry Masters Jersey - Scion",1,"2422"]
["Malus 4289-G60","Apple - Herefordshire Redstreak - Scion",1,"2422"]
["Malus 4289-G60","Apple - Herefordshire Redstreak - Scion",1,"2464"]
["Malus 4289-G60","Apple - Herefordshire Redstreak - Scion",8,"2470"]
["Malus 4953-HL44","Apple - Hunthouse Pippin - Scion",2,"2357"]
["Malus 4953-HL44","Apple - Hunthouse Pippin - Scion",1,"2414"]
["Malus 1590-BW24","Apple - Improved Dove - Scion",2,"2392"]
["Malus 2010-O11","Apple - Ingalls Red - Scion",1,"2349"]
["Malus 2010-O11","Apple - Ingalls Red - Scion",1,"2356"]
["Malus 2010-O11","Apple - Ingalls Red - Scion",4,"2376"]
["Malus 1668-P15","Apple - Irish Peach - Scion",1,"2329"]
["Malus 1668-P15","Apple - Irish Peach - Scion",1,"2363"]
["Malus 1668-P15","Apple - Irish Peach - Scion",1,"2381"]
["Malus 1668-P15","Apple - Irish Peach - Scion",1,"2482"]
["Malus 1668-P15","Apple - Irish Peach - Scion",1,"2486"]
["Malus 2007-L20","Apple - Isaac Newton - Scion",2,"2392"]
["Malus 4291/BG-I62","Apple - James Grieve - Scion",1,"2340"]
["Malus 4291/BG-I62","Apple - James Grieve - Scion",3,"2376"]
["Malus 5269-HL21","Apple - Jaszvadoka - Scion",1,"2346"]
["Malus 5269-HL21","Apple - Jaszvadoka - Scion",1,"2466"]
["Malus 5040-HL27","Apple - Johnny Andrews - Scion",2,"2353"]
["Malus 5040-HL27","Apple - Johnny Andrews - Scion",1,"2464"]
["Malus 1074-L07","Apple - Jonagold - Scion",1,"2326"]
["Malus 1074-L07","Apple - Jonagold - Scion",1,"2377"]
["Malus 1074-L07","Apple - Jonagold - Scion",1,"2393"]
["Malus 1074-L07","Apple - Jonagold - Scion",1,"2395"]
["Malus 1790-P31","Apple - Karmijn de Sonnaville - Scion",1,"2328"]
["Malus 1790-P31","Apple - Karmijn de Sonnaville - Scion",1,"2340"]
["Malus 1790-P31","Apple - Karmijn de Sonnaville - Scion",1,"2350"]
["Malus 1630-000","Apple - Katy / Katja - Scion",1,"2329"]
["Malus 1630-000","Apple - Katy / Katja - Scion",1,"2336"]
["Malus 1630-000","Apple - Katy / Katja - Scion",1,"2337"]
["Malus 1630-000","Apple - Katy / Katja - Scion",1,"2351"]
["Malus 4979-BW28","Apple - Kermerrien - Scion",1,"2363"]
["Malus 3892-","Apple - King Byrd - Scion",1,"2336"]
["Malus 3892-","Apple - King Byrd - Scion",1,"2337"]
["Malus 3892-","Apple - King Byrd - Scion",1,"2363"]
["Malus 3892-","Apple - King Byrd - Scion",1,"2490"]
["Malus 7093-BW","Apple - King Coffee - Scion",4,"2375"]
["Malus 7093-BW","Apple - King Coffee - Scion",2,"2392"]
["Malus 5243/5648-W47","Apple - King David - Scion",1,"2335"]
["Malus 5243/5648-W47","Apple - King David - Scion",1,"2343"]
["Malus 5243/5648-W47","Apple - King David - Scion",1,"2356"]
["Malus 5243/5648-W47","Apple - King David - Scion",1,"2363"]
["Malus 5243/5648-W47","Apple - King David - Scion",1,"2380"]
["Malus 5243/5648-W47","Apple - King David - Scion",1,"2399"]
["Malus 5243/5648-W47","Apple - King David - Scion",1,"2404"]
["Malus 5243/5648-W47","Apple - King David - Scion",1,"2423"]
["Malus 5243/5648-W47","Apple - King David - Scion",1,"2467"]
["Malus 5243/5648-W47","Apple - King David - Scion",1,"2482"]
["Malus 5243/5648-W47","Apple - King David - Scion",1,"2486"]
["Malus 5243/5648-W47","Apple - King David - Scion",1,"2490"]
["Malus 776-A01","Apple - Kingston Black - Scion",2,"2392"]
["Malus 776-A01","Apple - Kingston Black - Scion",1,"2422"]
["Malus 776-A01","Apple - Kingston Black - Scion",1,"2464"]
["Malus 776-A01","Apple - Kingston Black - Scion",4,"2470"]
["Malus 1082-J26","Apple - Kirton Fair - Scion",1,"2333"]
["Malus 1082-J26","Apple - Kirton Fair - Scion",1,"2356"]
["Malus 3416-B06","Apple - Knotted Kernel - Scion",1,"2380"]
["Malus 3416-B06","Apple - Knotted Kernel - Scion",1,"2414"]
["Malus 5674-X6","Apple - Ladys Finger - Scion",1,"2326"]
["Malus 783-B23","Apple - Lanes Prince Albert - Scion",1,"2329"]
["Malus 783-B23","Apple - Lanes Prince Albert - Scion",1,"2340"]
["Malus 783-B23","Apple - Lanes Prince Albert - Scion",1,"2343"]
["Malus 783-B23","Apple - Lanes Prince Albert - Scion",1,"2430"]
["Malus 801-000","Apple - Laxton Epicure - Scion",1,"2336"]
["Malus 801-000","Apple - Laxton Epicure - Scion",1,"2337"]
["Malus 801-000","Apple - Laxton Epicure - Scion",1,"2349"]
["Malus 801-000","Apple - Laxton Epicure - Scion",1,"2443"]
["Malus 1029-Q33","Apple - Laxton Fortune - Scion",1,"2323"]
["Malus 1029-Q33","Apple - Laxton Fortune - Scion",1,"2336"]
["Malus 1029-Q33","Apple - Laxton Fortune - Scion",1,"2337"]
["Malus 1039-Q30","Apple - Longkeeper - Scion",1,"2380"]
["Malus 1039-Q30","Apple - Longkeeper - Scion",1,"2417"]
["Malus 1039-Q30","Apple - Longkeeper - Scion",1,"2490"]
["Malus 5619-HL05","Apple - Marriage Maker - Scion",1,"2334"]
["Malus 5619-HL05","Apple - Marriage Maker - Scion",1,"2340"]
["Malus 5619-HL05","Apple - Marriage Maker - Scion",1,"2363"]
["Malus 5619-HL05","Apple - Marriage Maker - Scion",1,"2399"]
["Malus 5619-HL05","Apple - Marriage Maker - Scion",1,"2464"]
["Malus 3924-HL10","Apple - Martins Custard - Scion",1,"2399"]
["Malus 3924-HL10","Apple - Martins Custard - Scion",1,"2482"]
["Malus 3740/4691-U24","Apple - McIntosh- Scion",1,"2330"]
["Malus 3740/4691-U24","Apple - McIntosh- Scion",1,"2356"]
["Malus 3740/4691-U24","Apple - McIntosh- Scion",1,"2418"]
["Malus 1640-P09","Apple - Merton Knave - Scion",1,"2356"]
["Malus 1640-P09","Apple - Merton Knave - Scion",1,"2486"]
["Malus 788-B04","Apple - Merton Russet - Scion",1,"2327"]
["Malus 788-B04","Apple - Merton Russet - Scion",1,"2360"]
["Malus 788-B04","Apple - Merton Russet - Scion",2,"2479"]
["Malus 788-B04","Apple - Merton Russet - Scion",1,"2482"]
["Malus 5019-HL35","Apple - Monmouth Beauty (Cissy) - Scion",1,"2323"]
["Malus 5019-HL35","Apple - Monmouth Beauty (Cissy) - Scion",1,"2346"]
["Malus 5019-HL35","Apple - Monmouth Beauty (Cissy) - Scion",2,"2381"]
["Malus 1035-Q31","Apple - Mosses Seedling - Scion",1,"2325"]
["Malus 1641-M02","Apple - Nutmeg Pippin - Scion",1,"2323"]
["Malus 1641-M02","Apple - Nutmeg Pippin - Scion",1,"2414"]
["Malus 1085-J32","Apple - Orleans Reinette - Scion",1,"2363"]
["Malus 1085-J32","Apple - Orleans Reinette - Scion",1,"2381"]
["Malus 1085-J32","Apple - Orleans Reinette - Scion",1,"2490"]
["Malus 1047/6393-Q23","Apple - Pear Apple - Scion",1,"2327"]
["Malus 1047/6393-Q23","Apple - Pear Apple - Scion",1,"2365"]
["Malus 4580-W5","Apple - Pigeon de Jerusalem - Scion",1,"2363"]
["Malus 4580-W5","Apple - Pigeon de Jerusalem - Scion",1,"2414"]
["Malus 4580-W5","Apple - Pigeon de Jerusalem - Scion",1,"2430"]
["Malus 4580-W5","Apple - Pigeon de Jerusalem - Scion",1,"2443"]
["Malus 1026-Q34","Apple - Pigs Snout - Scion",2,"2376"]
["Malus 1026-Q34","Apple - Pigs Snout - Scion",1,"2422"]
["Malus 4903-W13","Apple - Pink Parfait - Scion",1,"2363"]
["Malus 4903-W13","Apple - Pink Parfait - Scion",1,"2377"]
["Malus 8708","Apple - Pink Pearl - Barerooted",1,"2431"]
["Malus 0000-M0","Apple - Pitmaston Pineapple - Scion",1,"2323"]
["Malus 0000-M0","Apple - Pitmaston Pineapple - Scion",1,"2325"]
["Malus 0000-M0","Apple - Pitmaston Pineapple - Scion",2,"2387"]
["Malus 0000-M0","Apple - Pitmaston Pineapple - Scion",1,"2393"]
["Malus 0000-M0","Apple - Pitmaston Pineapple - Scion",2,"2416"]
["Malus 0000-M0","Apple - Pitmaston Pineapple - Scion",1,"2417"]
["Malus 0000-M0","Apple - Pitmaston Pineapple - Scion",1,"2418"]
["Malus 0000-M0","Apple - Pitmaston Pineapple - Scion",1,"2485"]
["Malus 5145-W45","Apple - Purple Passion - Scion",1,"2335"]
["Malus 5145-W45","Apple - Purple Passion - Scion",1,"2340"]
["Malus 5145-W45","Apple - Purple Passion - Scion",1,"2354"]
["Malus 5145-W45","Apple - Purple Passion - Scion",1,"2356"]
["Malus 5145-W45","Apple - Purple Passion - Scion",2,"2357"]
["Malus 2011-000","Apple - Rajka - Scion",1,"2328"]
["Malus 2011-000","Apple - Rajka - Scion",1,"2333"]
["Malus 2011-000","Apple - Rajka - Scion",1,"2335"]
["Malus 2011-000","Apple - Rajka - Scion",1,"2363"]
["Malus 2892","Apple - Rambour d Hiver - Scion",1,"2365"]
["Malus 1050-Q20","Apple - Rattler - Scion",1,"2329"]
["Malus 1050-Q20","Apple - Rattler - Scion",4,"2375"]
["Malus 1050-Q20","Apple - Rattler - Scion",1,"2482"]
["Malus 5256-HL17","Apple - Red Chief - Scion",1,"2349"]
["Malus 5256-HL17","Apple - Red Chief - Scion",1,"2414"]
["Malus 5256-HL17","Apple - Red Chief - Scion",1,"2416"]
["Malus 5256-HL17","Apple - Red Chief - Scion",1,"2459"]
["Malus 5085-W18","Apple - Redfield - Scion",1,"2346"]
["Malus 5085-W18","Apple - Redfield - Scion",1,"2354"]
["Malus 4746-HL1","Apple - Reine des Pommes - Scion",1,"2381"]
["Malus 4746-HL1","Apple - Reine des Pommes - Scion",1,"2426"]
["Malus 1642-P12","Apple - Reinette Ananas - Scion",1,"2323"]
["Malus 1642-P12","Apple - Reinette Ananas - Scion",1,"2328"]
["Malus 1642-P12","Apple - Reinette Ananas - Scion",1,"2333"]
["Malus 1642-P12","Apple - Reinette Ananas - Scion",1,"2356"]
["Malus 1642-P12","Apple - Reinette Ananas - Scion",1,"2360"]
["Malus 1642-P12","Apple - Reinette Ananas - Scion",1,"2363"]
["Malus 1642-P12","Apple - Reinette Ananas - Scion",2,"2387"]
["Malus 1642-P12","Apple - Reinette Ananas - Scion",1,"2393"]
["Malus 1642-P12","Apple - Reinette Ananas - Scion",1,"2455"]
["Malus 3181-U18","Apple - Reinette de Brucbrucks - Scion",1,"2350"]
["Malus 1724-P01","Apple - Reinette grise du Canada - Scion",1,"2327"]
["Malus 1724-P01","Apple - Reinette grise du Canada - Scion",1,"2334"]
["Malus 1724-P01","Apple - Reinette grise du Canada - Scion",1,"2358"]
["Malus 1724-P01","Apple - Reinette grise du Canada - Scion",1,"2384"]
["Malus 1724-P01","Apple - Reinette grise du Canada - Scion",1,"2473"]
["Malus 1083-L14","Apple - Ribston Pippin - Scion",1,"2323"]
["Malus 1083-L14","Apple - Ribston Pippin - Scion",1,"2363"]
["Malus 1083-L14","Apple - Ribston Pippin - Scion",1,"2466"]
["Malus 8770","Apple - Rosalisa - Rootstock",1,"2415"]
["Malus 1032-Q32","Apple - Ross Nonpareil - Scion",1,"2325"]
["Malus 1781/4374-000","Apple - Rotor Eiserapfel - Scion",1,"2365"]
["Malus 3475-U35","Apple - Rubin - Scion",5,"2025"]
["Malus 2014-000","Apple - Rubinola - Scion",1,"2368"]
["Malus 2014-000","Apple - Rubinola - Scion",1,"2455"]
["Malus 2014-000","Apple - Rubinola - Scion",2,"2462"]
["Malus 1084-J09","Apple - Saturn - Scion",1,"2349"]
["Malus 1084-J09","Apple - Saturn - Scion",1,"2384"]
["Malus 1084-J09","Apple - Saturn - Scion",2,"2479"]
["Malus 1323-Q02","Apple - Shizuka - Scion",1,"2377"]
["Malus 1323-Q02","Apple - Shizuka - Scion",1,"2416"]
["Malus 1323-Q02","Apple - Shizuka - Scion",1,"2438"]
["Malus 5637-000","Apple - Snow (Fameuse) - Scion",1,"2326"]
["Malus 5637-000","Apple - Snow (Fameuse) - Scion",1,"2358"]
["Malus 5637-000","Apple - Snow (Fameuse) - Scion",1,"2368"]
["Malus 5637-000","Apple - Snow (Fameuse) - Scion",1,"2399"]
["Malus 5637-000","Apple - Snow (Fameuse) - Scion",1,"2414"]
["Malus 5637-000","Apple - Snow (Fameuse) - Scion",1,"2462"]
["Malus 2201-BW25","Apple - Somerset Redstreak - Scion",2,"2392"]
["Malus 2201-BW25","Apple - Somerset Redstreak - Scion",1,"2414"]
["Malus 2201-BW25","Apple - Somerset Redstreak - Scion",1,"2426"]
["Malus 2201-BW25","Apple - Somerset Redstreak - Scion",1,"2434"]
["Malus 1689-P14","Apple - Sops in Wine - Scion",1,"2323"]
["Malus 1689-P14","Apple - Sops in Wine - Scion",1,"2335"]
["Malus 1689-P14","Apple - Sops in Wine - Scion",1,"2374"]
["Malus 1689-P14","Apple - Sops in Wine - Scion",4,"2375"]
["Malus 1689-P14","Apple - Sops in Wine - Scion",2,"2414"]
["Malus 1689-P14","Apple - Sops in Wine - Scion",1,"2434"]
["Malus 1689-P14","Apple - Sops in Wine - Scion",1,"2464"]
["Malus 7917-","Apple - Spalord - Scion",1,"2346"]
["Malus 7917-","Apple - Spalord - Scion",1,"2365"]
["Malus 785-B15","Apple - Spartan - Scion",1,"2323"]
["Malus 785-B15","Apple - Spartan - Scion",1,"2377"]
["Malus 785-B15","Apple - Spartan - Scion",1,"2393"]
["Malus 785-B15","Apple - Spartan - Scion",1,"2467"]
["Malus 1087-J05","Apple - St Edmunds Russet - Scion",1,"2334"]
["Malus 1087-J05","Apple - St Edmunds Russet - Scion",1,"2351"]
["Malus 1087-J05","Apple - St Edmunds Russet - Scion",1,"2354"]
["Malus 1087-J05","Apple - St Edmunds Russet - Scion",1,"2363"]
["Malus 1087-J05","Apple - St Edmunds Russet - Scion",3,"2376"]
["Malus 1087-J05","Apple - St Edmunds Russet - Scion",1,"2384"]
["Malus 1087-J05","Apple - St Edmunds Russet - Scion",1,"2387"]
["Malus 1087-J05","Apple - St Edmunds Russet - Scion",1,"2455"]
["Malus 2452-G4","Apple - Stembridge Cluster - Scion",2,"2392"]
["Malus 812-F12","Apple - Sturmer Pippin - Scion",1,"2334"]
["Malus 812-F12","Apple - Sturmer Pippin - Scion",1,"2358"]
["Malus 799-D13","Apple - Sunset - Scion",1,"2323"]
["Malus 799-D13","Apple - Sunset - Scion",1,"2328"]
["Malus 799-D13","Apple - Sunset - Scion",1,"2360"]
["Malus 799-D13","Apple - Sunset - Scion",1,"2393"]
["Malus 799-D13","Apple - Sunset - Scion",5,"2436"]
["Malus 799-D13","Apple - Sunset - Scion",1,"2467"]
["Malus 5020-HL34","Apple - Sweet Merlin - Scion",1,"2467"]
["Malus 5257-HL16","Apple - Tenroy - Scion",1,"2329"]
["Malus 2454-G15","Apple - Tom Putt - Scion",1,"2422"]
["Malus 2283/1053-O02","Apple - Topaz - Scion",1,"2329"]
["Malus 2283/1053-O02","Apple - Topaz - Scion",1,"2354"]
["Malus 1278-O23","Apple - Twenty Ounce (20 ounce) - Scion",1,"2399"]
["Malus 1278-O23","Apple - Twenty Ounce (20 ounce) - Scion",1,"2430"]
["Malus 5102-X46","Apple - Valkea kuulas (White Transparent) - Scion",1,"2456"]
["Malus 5102-X46","Apple - Valkea kuulas (White Transparent) - Scion",1,"2466"]
["Malus 5638-","Apple - Viking - Scion",1,"2363"]
["Malus 5638-","Apple - Viking - Scion",1,"2368"]
["Malus 5638-","Apple - Viking - Scion",1,"2399"]
["Malus 5638-","Apple - Viking - Scion",1,"2404"]
["Malus 3473-U42","Apple - Whitpot Sweet - Scion",4,"2376"]
["Malus 3473-U42","Apple - Whitpot Sweet - Scion",1,"2443"]
["Malus 3473-U42","Apple - Whitpot Sweet - Scion",1,"2467"]
["Malus 5240-W23","Apple - Wickson Crab - Scion",2,"2328"]
["Malus 5240-W23","Apple - Wickson Crab - Scion",1,"2346"]
["Malus 5240-W23","Apple - Wickson Crab - Scion",1,"2354"]
["Malus 5240-W23","Apple - Wickson Crab - Scion",1,"2363"]
["Malus 5240-W23","Apple - Wickson Crab - Scion",1,"2422"]
["Malus 5240-W23","Apple - Wickson Crab - Scion",4,"2447"]
["Malus 1043-Q27","Apple - Winter Greening - Scion",1,"2414"]
["Malus 820-H26","Apple - Worcester Pearmain - Scion",1,"2326"]
["Malus 820-H26","Apple - Worcester Pearmain - Scion",1,"2363"]
["Malus 820-H26","Apple - Worcester Pearmain - Scion",1,"2368"]
["Malus 820-H26","Apple - Worcester Pearmain - Scion",1,"2414"]
["Malus 820-H26","Apple - Worcester Pearmain - Scion",1,"2417"]
["Malus 5618-HL04","Apple - Wyken Pippin - Scion",1,"2323"]
["Malus 5618-HL04","Apple - Wyken Pippin - Scion",1,"2356"]
["Malus 5618-HL04","Apple - Wyken Pippin - Scion",1,"2423"]
["Malus 2255-BW34","Apple - Yarlington Mill - Scion",1,"2363"]
["Malus 2255-BW34","Apple - Yarlington Mill - Scion",1,"2381"]
["Malus 2255-BW34","Apple - Yarlington Mill - Scion",2,"2392"]
["Malus 2255-BW34","Apple - Yarlington Mill - Scion",1,"2422"]
["Malus 2255-BW34","Apple - Yarlington Mill - Scion",1,"2434"]
["Malus 2255-BW34","Apple - Yarlington Mill - Scion",1,"2464"]
["Malus 2255-BW34","Apple - Yarlington Mill - Scion",10,"2470"]
["Malus 1308-Q15","Apple - Yellow Transparent - Scion",1,"2438"]
["Prunus 2539-K29","Apricot - Hargrand - Scion",2,"2025"]
["Prunus 3353-J01","Apricot - Moorpark - Scion",2,"2352"]
["Pyrus 4196-N51","Asian Pear - Chojuro - Scion",2,"2327"]
["Pyrus 4196-N51","Asian Pear - Chojuro - Scion",1,"2343"]
["Pyrus 4196-N51","Asian Pear - Chojuro - Scion",3,"2405"]
["Pyrus 4196-N51","Asian Pear - Chojuro - Scion",1,"2418"]
["Pyrus 4196-N51","Asian Pear - Chojuro - Scion",1,"2430"]
["Pyrus 7019-J49","Asian Pear - Early Shu - Scion",1,"2416"]
["Pyrus 7019-J49","Asian Pear - Early Shu - Scion",1,"2466"]
["Pyrus 5383-Y03","Asian Pear - Erdi Korai - Scion",2,"2331"]
["Pyrus 5383-Y03","Asian Pear - Erdi Korai - Scion",1,"2363"]
["Pyrus 5383-Y03","Asian Pear - Erdi Korai - Scion",1,"2424"]
["Pyrus 5383-Y03","Asian Pear - Erdi Korai - Scion",1,"2425"]
["Pyrus 5383-Y03","Asian Pear - Erdi Korai - Scion",1,"2466"]
["Pyrus 6950","Asian Pear - Hong Li - Scion",1,"2416"]
["Pyrus 6950","Asian Pear - Hong Li - Scion",1,"2418"]
["Pyrus 6950","Asian Pear - Hong Li - Scion",1,"2429"]
["Pyrus 6950","Asian Pear - Hong Li - Scion",1,"2466"]
["Pyrus 4194-N49","Asian Pear - Hosui - Scion",2,"2405"]
["Pyrus 4194-N49","Asian Pear - Hosui - Scion",1,"2416"]
["Pyrus 4194-N49","Asian Pear - Hosui - Scion",1,"2418"]
["Pyrus 4194-N49","Asian Pear - Hosui - Scion",1,"2462"]
["Pyrus 7951-BW100","Asian Pear - Man Sun Gil - Scion",1,"2327"]
["Pyrus 7951-BW100","Asian Pear - Man Sun Gil - Scion",2,"2331"]
["Pyrus 7951-BW100","Asian Pear - Man Sun Gil - Scion",1,"2340"]
["Pyrus 6832-H65","Asian Pear - Meigetsu - Scion",2,"2331"]
["Pyrus 6832-H65","Asian Pear - Meigetsu - Scion",1,"2363"]
["Pyrus 6832-H65","Asian Pear - Meigetsu - Scion",1,"2381"]
["Pyrus 6832-H65","Asian Pear - Meigetsu - Scion",1,"2416"]
["Pyrus 6832-H65","Asian Pear - Meigetsu - Scion",1,"2425"]
["Pyrus 6832-H65","Asian Pear - Meigetsu - Scion",1,"2438"]
["Pyrus 6832-H65","Asian Pear - Meigetsu - Scion",1,"2462"]
["Pyrus 6832-H65","Asian Pear - Meigetsu - Scion",1,"2464"]
["Pyrus 4198-N54","Asian Pear - Niitaka - Scion",1,"2416"]
["Pyrus 4195-N53","Asian Pear - Nijisseiki - Scion",1,"2418"]
["Pyrus 4195-N53","Asian Pear - Nijisseiki - Scion",1,"2419"]
["Pyrus 4195-N53","Asian Pear - Nijisseiki - Scion",1,"2438"]
["Pyrus 4195-N53","Asian Pear - Nijisseiki - Scion",1,"2483"]
["Pyrus 3257-J48","Asian Pear - Raja - Scion",1,"2327"]
["Pyrus 3257-J48","Asian Pear - Raja - Scion",2,"2331"]
["Pyrus 3257-J48","Asian Pear - Raja - Scion",2,"2342"]
["Pyrus 3257-J48","Asian Pear - Raja - Scion",1,"2416"]
["Pyrus 3257-J48","Asian Pear - Raja - Scion",1,"2459"]
["Pyrus 5692-BG","Asian Pear - Shinseiki - Scion",2,"2327"]
["Pyrus 5692-BG","Asian Pear - Shinseiki - Scion",2,"2342"]
["Pyrus 5692-BG","Asian Pear - Shinseiki - Scion",1,"2418"]
["Pyrus 5692-BG","Asian Pear - Shinseiki - Scion",1,"2424"]
["Pyrus 5692-BG","Asian Pear - Shinseiki - Scion",1,"2429"]
["Pyrus 5692-BG","Asian Pear - Shinseiki - Scion",1,"2430"]
["Pyrus 5692-BG","Asian Pear - Shinseiki - Scion",1,"2438"]
["Pyrus 5692-BG","Asian Pear - Shinseiki - Scion",1,"2483"]
["Pyrus 7902-BW","Asian Pear - UK Li (cross) - Scion",2,"2331"]
["Pyrus 7902-BW","Asian Pear - UK Li (cross) - Scion",1,"2342"]
["Pyrus 7902-BW","Asian Pear - UK Li (cross) - Scion",1,"2377"]
["Pyrus 7902-BW","Asian Pear - UK Li (cross) - Scion",1,"2416"]
["Pyrus 7902-BW","Asian Pear - UK Li (cross) - Scion",1,"2430"]
["Pyrus 7902-BW","Asian Pear - UK Li (cross) - Scion",1,"2466"]
["Malus Rtsk-00","B118 - Apple Rootstock - Bare Rooted",5,"2339"]
["Malus Rtsk-00","B118 - Apple Rootstock - Bare Rooted",3,"2408"]
["Malus Rtsk-00","B118 - Apple Rootstock - Bare Rooted",4,"2443"]
["Malus Rtsk-00","B118 - Apple Rootstock - Bare Rooted",10,"2464"]
["Malus Rtsk-00","B9 (Bud9)- Apple Rootstock - Bare Rooted",2,"2363"]
["Malus Rtsk-00","B9 (Bud9)- Apple Rootstock - Bare Rooted",5,"2381"]
["Malus Rtsk-00","B9 (Bud9)- Apple Rootstock - Bare Rooted",3,"2408"]
["Malus Rtsk-00","B9 (Bud9)- Apple Rootstock - Bare Rooted",3,"2428"]
["Malus Rtsk-00","B9 (Bud9)- Apple Rootstock - Bare Rooted",3,"2438"]
["Malus Rtsk-00","B9 (Bud9)- Apple Rootstock - Bare Rooted",4,"2443"]
["Prunus 2664-O43","Cherry - Belle de Mai - Scion",1,"2462"]
["Prunus 1388-N38","Cherry - Burlat - Scions",1,"2462"]
["Prunus 1388-N38","Cherry - Burlat - Scions",1,"2469"]
["Prunus 2282-N45","Cherry - Donissens - Scion",2,"2465"]
["Prunus 2794-N41","Cherry - Early Rivers - Scion",1,"2464"]
["Prunus 2794-N41","Cherry - Early Rivers - Scion",2,"2465"]
["Prunus 1770-N43","Cherry - géant d hedelfingen - Scion",1,"2462"]
["Prunus 1632-O37","Cherry - Giorgia - Scion",1,"2465"]
["Prunus 3663-O34","Cherry - Kordia - Scion",1,"1906"]
["Prunus 3663-O34","Cherry - Kordia - Scion",1,"2459"]
["Prunus 3663-O34","Cherry - Kordia - Scion",1,"2465"]
["Prunus 3663-O34","Cherry - Kordia - Scion",1,"2469"]
["Prunus 1633-O46","Cherry - Lapins - Scion",1,"1906"]
["Prunus 1633-O46","Cherry - Lapins - Scion",1,"2459"]
["Prunus 1633-O46","Cherry - Lapins - Scion",1,"2466"]
["Prunus 1633-O46","Cherry - Lapins - Scion",1,"2469"]
["Prunus 4230-00","Cherry - Rainier - Scion",1,"1906"]
["Prunus 1199-O40","Cherry - Stella - Scions",1,"1906"]
["Prunus 1199-O40","Cherry - Stella - Scions",2,"2387"]
["Prunus 1199-O40","Cherry - Stella - Scions",1,"2406"]
["Prunus 1199-O40","Cherry - Stella - Scions",1,"2433"]
["Prunus 1199-O40","Cherry - Stella - Scions",1,"2466"]
["Prunus 1199-O40","Cherry - Stella - Scions",1,"2469"]
["Prunus 7932-00","Cherry - Sweetheart - Scion",1,"2459"]
["Prunus 7932-00","Cherry - Sweetheart - Scion",2,"2465"]
["Prunus 7932-00","Cherry - Sweetheart - Scion",1,"2466"]
["Prunus 7932-00","Cherry - Sweetheart - Scion",1,"2469"]
["Prunus 7932-00","Cherry - Sweetheart - Scion",1,"2476"]
["Prunus 2302-O48","Cherry - Vann - Scions",1,"1906"]
["Prunus 2302-O48","Cherry - Vann - Scions",2,"2387"]
["Prunus 2302-O48","Cherry - Vann - Scions",1,"2406"]
["Prunus 2302-O48","Cherry - Vann - Scions",1,"2409"]
["Prunus 2302-O48","Cherry - Vann - Scions",1,"2433"]
["Prunus 1210-O38","Cherry - Vega - Scion",1,"2466"]
["Prunus Rtsk-00","Colt - Cherry Rootstock - Bare Rooted",10,"2025"]
[null,"Colt Cherry Hardwood Cuttings x 10",1,"2478"]
["Prunus 1849-BW12","Damson - Shropshire Damson - Scion",4,"2390"]
["Ficus BGleft-2714","Fig - BG Gold - Scion",1,"2385"]
["Ficus BGleft-2714","Fig - BG Gold - Scion",1,"2466"]
["Ficus BGleft-2714","Fig - BG Gold - Scion",1,"2486"]
["Ficus BGleft-7946","Fig - Bornholms Diamond - Scion",1,"2389"]
["Ficus BGleft-7946","Fig - Bornholms Diamond - Scion",1,"2441"]
["Ficus BGleft-7946","Fig - Bornholms Diamond - Scion",1,"2466"]
["Ficus BGright-8001","Fig - Brunswick - Scion",1,"2388"]
["Ficus BGright","Fig - Celeste - Scion",1,"2385"]
["Ficus BGright","Fig - Celeste - Scion",1,"2398"]
["Ficus BGright","Fig - Celeste - Scion",2,"2418"]
["Ficus BGright","Fig - Celeste - Scion",1,"2419"]
["Ficus BGright","Fig - Celeste - Scion",1,"2441"]
["Ficus BGright","Fig - Celeste - Scion",1,"2466"]
["Ficus BGright","Fig - Celeste - Scion",1,"2469"]
["Ficus BGright-7840","Fig - Cerretto - Scion",1,"2385"]
["Ficus BGright-7840","Fig - Cerretto - Scion",1,"2392"]
["Ficus BGright-7840","Fig - Cerretto - Scion",1,"2398"]
["Ficus BGright-7840","Fig - Cerretto - Scion",1,"2419"]
["Ficus BGright-7389","Fig - Cordia - Scion",1,"2398"]
["Ficus BGright-7389","Fig - Cordia - Scion",1,"2430"]
["Ficus BGright","Fig - Desert King - Scion",2,"2418"]
["Ficus BGleft-2650","Fig - Grise de Tarascon - Scion",1,"2389"]
["Ficus BGleft-2650","Fig - Grise de Tarascon - Scion",1,"2419"]
["Ficus BGright-5004","Fig - Mary Lane - Scion",1,"2385"]
["Ficus BGright-5004","Fig - Mary Lane - Scion",1,"2388"]
["Ficus BGright-5004","Fig - Mary Lane - Scion",1,"2398"]
["Ficus BGright-5004","Fig - Mary Lane - Scion",2,"2418"]
["Ficus BGright-5004","Fig - Mary Lane - Scion",1,"2419"]
["Ficus BGright-7863","Fig - Melanzana - Scion",1,"2398"]
["Ficus BGright-7863","Fig - Melanzana - Scion",1,"2441"]
["Ficus BGleft-4628","Fig - Noire de Bellone - Scion",1,"2385"]
["Ficus BGleft-4628","Fig - Noire de Bellone - Scion",1,"2388"]
["Ficus BGleft-4628","Fig - Noire de Bellone - Scion",1,"2392"]
["Ficus BGleft-4628","Fig - Noire de Bellone - Scion",1,"2418"]
["Ficus BGleft-4628","Fig - Noire de Bellone - Scion",1,"2419"]
["Ficus BGleft-4628","Fig - Noire de Bellone - Scion",1,"2420"]
["Ficus BGright-7864","Fig - Osborn Prolific - Scion",1,"2388"]
["Ficus BGright-7864","Fig - Osborn Prolific - Scion",1,"2389"]
["Ficus BGright-7864","Fig - Osborn Prolific - Scion",1,"2392"]
["Ficus BGright-4828","Fig - Panache - Scion",1,"2441"]
["Ficus BGright-7845","Fig - Panino - Scion",1,"2385"]
["Ficus BGright-7845","Fig - Panino - Scion",1,"2389"]
["Ficus","Fig - Peters Honey - Potted",1,"2398"]
["Ficus BGleft-4537","Fig - Sicilian Red - Scion",1,"2389"]
["Ficus BGleft-4537","Fig - Sicilian Red - Scion",1,"2398"]
["Ficus BGleft-4537","Fig - Sicilian Red - Scion",1,"2418"]
["Ficus BGleft-4537","Fig - Sicilian Red - Scion",1,"2419"]
["Ficus BGleft-7835","Fig - Signora - Scion",1,"2388"]
["Ficus BGleft-7835","Fig - Signora - Scion",1,"2419"]
["Ficus","Fig - Sr Antonio - Potted",1,"2398"]
["Ficus BGright-4925","Fig - Sucrette - Scion",1,"2418"]
["Ficus BGleft-7808","Fig - Tayip 2 - Scion",1,"2398"]
["Ficus BGleft-7808","Fig - Tayip 2 - Scion",1,"2466"]
["Ficus BGleft-4688","Fig - White Adriatic - Scion",1,"2398"]
["Ficus BGleft-4688","Fig - White Adriatic - Scion",1,"2430"]
["Malus Rtsk-00","G202 ® - Apple Rootstock - Bare Rooted",5,"2339"]
["Malus Rtsk-00","G202 ® - Apple Rootstock - Bare Rooted",1,"2347"]
["Malus Rtsk-00","G202 ® - Apple Rootstock - Bare Rooted",5,"2365"]
["Malus Rtsk-00","G202 ® - Apple Rootstock - Bare Rooted",2,"2383"]
["Malus Rtsk-00","G202 ® - Apple Rootstock - Bare Rooted",5,"2446"]
["Malus Rtsk-00","G202 ® - Apple Rootstock - Bare Rooted",20,"2489"]
["Malus Rtsk-00","G210 ® - Apple Rootstock - Bare Rooted",5,"2325"]
["Malus Rtsk-00","G210 ® - Apple Rootstock - Bare Rooted",2,"2335"]
["Malus Rtsk-00","G210 ® - Apple Rootstock - Bare Rooted",2,"2347"]
["Malus Rtsk-00","G210 ® - Apple Rootstock - Bare Rooted",3,"2364"]
["Malus Rtsk-00","G210 ® - Apple Rootstock - Bare Rooted",2,"2374"]
["Malus Rtsk-00","G210 ® - Apple Rootstock - Bare Rooted",2,"2383"]
["Malus Rtsk-00","G214 ® - Apple Rootstock - Bare Rooted",2,"2325"]
["Malus Rtsk-00","G214 ® - Apple Rootstock - Bare Rooted",1,"2347"]
["Malus Rtsk-00","G214 ® - Apple Rootstock - Bare Rooted",5,"2369"]
["Malus Rtsk-00","G214 ® - Apple Rootstock - Bare Rooted",2,"2383"]
["Malus Rtsk-00","G214 ® - Apple Rootstock - Bare Rooted",10,"2401"]
["Malus Rtsk-00","G214 ® - Apple Rootstock - Bare Rooted",2,"2410"]
["Malus Rtsk-00","G214 ® - Apple Rootstock - Bare Rooted",3,"2445"]
["Malus Rtsk-00","G214 ® - Apple Rootstock - Bare Rooted",17,"2481"]
["Malus Rtsk-00","G214 ® - Apple Rootstock - Bare Rooted",3,"2487"]
["Malus Rtsk-00","G969 ® - Apple Rootstock - Bare Rooted",5,"2329"]
["Malus Rtsk-00","G969 ® - Apple Rootstock - Bare Rooted",1,"2374"]
["Prunus 4157-PA11","Gage - Cambridge Gage - Scion",1,"2377"]
["Prunus 4157-PA11","Gage - Cambridge Gage - Scion",2,"2387"]
["Prunus 4157-PA11","Gage - Cambridge Gage - Scion",1,"2404"]
["Prunus 4157-PA11","Gage - Cambridge Gage - Scion",1,"2438"]
["Prunus 4157-PA11","Gage - Cambridge Gage - Scion",1,"2476"]
["Prunus 6060-PA28","Gage - Jefferson Gage - Scion",1,"2325"]
["Prunus 6060-PA28","Gage - Jefferson Gage - Scion",1,"2381"]
["Prunus 6416-BW","Gage - Oullins (Golden) Gage - Scion",1,"2348"]
["Prunus 6416-BW","Gage - Oullins (Golden) Gage - Scion",1,"2377"]
["Prunus 6416-BW","Gage - Oullins (Golden) Gage - Scion",1,"2382"]
["Prunus 6416-BW","Gage - Oullins (Golden) Gage - Scion",2,"2447"]
["Prunus 1172-BW17","Gage - Stellas Star - Scion",1,"2409"]
["Prunus 1172-BW17","Gage - Stellas Star - Scion",1,"2429"]
["Prunus 1172-BW17","Gage - Stellas Star - Scion",1,"2438"]
["Prunus Rtsk-00","Gisela 5 ® - Cherry Rootstock - Bare Rooted",5,"2338"]
["Prunus Rtsk-00","Gisela 5 ® - Cherry Rootstock - Bare Rooted",2,"2362"]
["Prunus Rtsk-00","Gisela 5 ® - Cherry Rootstock - Bare Rooted",2,"2367"]
["Prunus Rtsk-00","Gisela 5 ® - Cherry Rootstock - Bare Rooted",2,"2383"]
["Prunus Rtsk-00","Gisela 5 ® - Cherry Rootstock - Bare Rooted",2,"2437"]
["Prunus Rtsk-00","Gisela 5 ® - Cherry Rootstock - Bare Rooted",2,"2476"]
["Malus Rtsk-00","GJ® Adaptabil - Plum Rootstock - Bare Rooted",20,"2025"]
["Actinidia 5436-W12","Kiwi - Cornell (Male Pollinator) - Scion",1,"2356"]
["Actinidia 5436-W12","Kiwi - Cornell (Male Pollinator) - Scion",1,"2392"]
["Actinidia 5436-W12","Kiwi - Cornell (Male Pollinator) - Scion",1,"2466"]
["Actinidia 5906-V52","Kiwi - Scarlet September - Scion",1,"2356"]
["Actinidia 5906-V52","Kiwi - Scarlet September - Scion",1,"2392"]
["Actinidia 5906-V52","Kiwi - Scarlet September - Scion",1,"2438"]
["Actinidia 5906-V52","Kiwi - Scarlet September - Scion",1,"2466"]
["Prunus Rtsk-00","Krymsk® 1 (VVA-1)  - Plum Rootstock - Bare Rooted",20,"2025"]
["Prunus Rtsk-00","Krymsk® 1 (VVA-1)  - Plum Rootstock - Bare Rooted",1,"2335"]
["Prunus Rtsk-00","Krymsk® 1 (VVA-1)  - Plum Rootstock - Bare Rooted",5,"2338"]
["Prunus Rtsk-00","Krymsk® 1 (VVA-1)  - Plum Rootstock - Bare Rooted",10,"2345"]
["Prunus Rtsk-00","Krymsk® 1 (VVA-1)  - Plum Rootstock - Bare Rooted",3,"2362"]
["Prunus Rtsk-00","Krymsk® 1 (VVA-1)  - Plum Rootstock - Bare Rooted",4,"2367"]
["Prunus Rtsk-00","Krymsk® 1 (VVA-1)  - Plum Rootstock - Bare Rooted",3,"2369"]
["Prunus Rtsk-00","Krymsk® 1 (VVA-1)  - Plum Rootstock - Bare Rooted",4,"2377"]
["Prunus Rtsk-00","Krymsk® 1 (VVA-1)  - Plum Rootstock - Bare Rooted",2,"2381"]
["Prunus Rtsk-00","Krymsk® 1 (VVA-1)  - Plum Rootstock - Bare Rooted",5,"2383"]
["Prunus Rtsk-00","Krymsk® 1 (VVA-1)  - Plum Rootstock - Bare Rooted",3,"2437"]
["Prunus Rtsk-00","Krymsk® 1 (VVA-1)  - Plum Rootstock - Bare Rooted",3,"2438"]
["Prunus Rtsk-00","Krymsk® 1 (VVA-1)  - Plum Rootstock - Bare Rooted",14,"2442"]
["Prunus Rtsk-00","Krymsk® 1 (VVA-1)  - Plum Rootstock - Bare Rooted",2,"2445"]
["Prunus Rtsk-00","Krymsk® 1 (VVA-1)  - Plum Rootstock - Bare Rooted",1,"2459"]
["Prunus Rtsk-00","Krymsk® 1 (VVA-1)  - Plum Rootstock - Bare Rooted",1,"2483"]
["Prunus Rtsk-00","Krymsk® 1 (VVA-1)  - Plum Rootstock - Bare Rooted",4,"2487"]
["Malus Rtsk-00","M116 ® - Apple Rootstock - Bare Rooted",40,"2378"]
["Malus Rtsk-00","M116 ® - Apple Rootstock - Bare Rooted",4,"2379"]
["Malus Rtsk-00","M116 ® - Apple Rootstock - Bare Rooted",10,"2426"]
["Malus Rtsk-00","M116 ® - Apple Rootstock - Bare Rooted",40,"2470"]
["Malus Rtsk-00","M116 ® - Apple Rootstock - Bare Rooted",3,"2474"]
["Malus Rtsk-00","M116 ® - Apple Rootstock - Bare Rooted",3,"2481"]
["Malus Rtsk-00","M25 - Apple Rootstock - Bare Rooted",15,"2392"]
["Malus Rtsk-00","M25 - Apple Rootstock - Bare Rooted",5,"2426"]
["Malus Rtsk-00","M25 - Apple Rootstock - Bare Rooted",15,"2439"]
["Malus Rtsk-00","M26 - Apple Rootstock - Bare Rooted",25,"2323"]
["Malus Rtsk-00","M26 - Apple Rootstock - Bare Rooted",5,"2328"]
["Malus Rtsk-00","M26 - Apple Rootstock - Bare Rooted",5,"2362"]
["Malus Rtsk-00","M26 - Apple Rootstock - Bare Rooted",5,"2399"]
["Malus Rtsk-00","M27 - Apple Rootstock - Bare Rooted",5,"2336"]
["Malus Rtsk-00","M27 - Apple Rootstock - Bare Rooted",4,"2337"]
["Malus Rtsk-00","M27 - Apple Rootstock - Bare Rooted",5,"2344"]
["Malus Rtsk-00","M27 - Apple Rootstock - Bare Rooted",4,"2377"]
["Malus Rtsk-00","M27 - Apple Rootstock - Bare Rooted",4,"2379"]
["Malus Rtsk-00","M27 - Apple Rootstock - Bare Rooted",9,"2418"]
["Malus Rtsk-00","M27 - Apple Rootstock - Bare Rooted",4,"2420"]
["Malus Rtsk-00","M27 - Apple Rootstock - Bare Rooted",4,"2459"]
["Malus Rtsk-00","M4 - Apple Rootstock - Bare Rooted",2,"2329"]
["Malus Rtsk-00","M7 - Apple Rootstock - Bare Rooted",2,"2329"]
["Malus Rtsk-00","M7 - Apple Rootstock - Bare Rooted",3,"2428"]
["Malus Rtsk-00","M9 - Apple Rootstock - Bare Rooted",5,"2335"]
["Malus Rtsk-00","M9 - Apple Rootstock - Bare Rooted",5,"2360"]
["Malus Rtsk-00","M9 - Apple Rootstock - Bare Rooted",5,"2379"]
["Malus Rtsk-00","M9 - Apple Rootstock - Bare Rooted",10,"2399"]
["Malus Rtsk-00","M9 - Apple Rootstock - Bare Rooted",5,"2410"]
["Malus Rtsk-00","M9 - Apple Rootstock - Bare Rooted",5,"2417"]
["Malus Rtsk-00","M9 - Apple Rootstock - Bare Rooted",7,"2424"]
["Malus Rtsk-00","M9 - Apple Rootstock - Bare Rooted",5,"2426"]
["Malus Rtsk-00","M9 - Apple Rootstock - Bare Rooted",13,"2467"]
["Malus Rtsk-00","M9 - Apple Rootstock - Bare Rooted",6,"2482"]
["Mespilus 3241-bank","Medlar - Iranian Medlar - Scion",7,"2435"]
["Mespilus 3167-bank","Medlar - Large Dutch - Scion",2,"2432"]
["Mespilus 3167-bank","Medlar - Large Dutch - Scion",2,"2484"]
["Mespilus bank-00","Medlar - Nottingham - Scion",3,"2432"]
["Mespilus bank-00","Medlar - Nottingham - Scion",1,"2469"]
["Mespilus 7398-bank","Medlar - Sultani - Scion",2,"2432"]
["Mespilus 7398-bank","Medlar - Sultani - Scion",2,"2466"]
["Malus Rtsk-00","MM106 - Apple Rootstock - Bare Rooted",10,"2323"]
["Malus Rtsk-00","MM106 - Apple Rootstock - Bare Rooted",5,"2329"]
["Malus Rtsk-00","MM106 - Apple Rootstock - Bare Rooted",5,"2351"]
["Malus Rtsk-00","MM106 - Apple Rootstock - Bare Rooted",5,"2384"]
["Malus Rtsk-00","MM106 - Apple Rootstock - Bare Rooted",5,"2399"]
["Malus Rtsk-00","MM106 - Apple Rootstock - Bare Rooted",10,"2422"]
["Malus Rtsk-00","MM106 - Apple Rootstock - Bare Rooted",60,"2439"]
["Malus Rtsk-00","MM111 - Apple Rootstock - Bare Rooted",12,"2386"]
["Malus Rtsk-00","MM111 - Apple Rootstock - Bare Rooted",5,"2399"]
["Pyrus 4931-I68","Pear - Akca - Scion",1,"2368"]
["Pyrus 4931-I68","Pear - Akca - Scion",1,"2429"]
["Pyrus 5482-I69","Pear - Amfora - Scion",1,"2343"]
["Pyrus 5482-I69","Pear - Amfora - Scion",1,"2347"]
["Pyrus 5482-I69","Pear - Amfora - Scion",1,"2368"]
["Pyrus 7014-BW","Pear - Ankara - Scion",1,"2346"]
["Pyrus 7014-BW","Pear - Ankara - Scion",1,"2347"]
["Pyrus 4286-00","Pear - Beth - Scion",1,"2325"]
["Pyrus 4286-00","Pear - Beth - Scion",1,"2473"]
["Pyrus 4558","Pear - Beurre Morettini - Scion",1,"2347"]
["Pyrus 4558","Pear - Beurre Morettini - Scion",1,"2363"]
["Pyrus 4558","Pear - Beurre Morettini - Scion",1,"2466"]
["Pyrus 4558","Pear - Beurre Morettini - Scion",1,"2490"]
["Pyrus 7120-T28 (7107)","Pear - Blanquilha - Scion",1,"2347"]
["Pyrus 7120-T28 (7107)","Pear - Blanquilha - Scion",1,"2490"]
["Pyrus 6909-1-79","Pear - Buerre (Butirra) Giffard - Scion",1,"2340"]
["Pyrus 6909-1-79","Pear - Buerre (Butirra) Giffard - Scion",2,"2352"]
["Pyrus 6909-1-79","Pear - Buerre (Butirra) Giffard - Scion",1,"2356"]
["Pyrus 6909-1-79","Pear - Buerre (Butirra) Giffard - Scion",1,"2359"]
["Pyrus 6909-1-79","Pear - Buerre (Butirra) Giffard - Scion",1,"2363"]
["Pyrus 6910","Pear - Butirra Ardenpoint - Scion",1,"2347"]
["Pyrus 6910","Pear - Butirra Ardenpoint - Scion",1,"2490"]
["Pyrus 4988-N3","Pear - Catillac - Scion",1,"2381"]
["Pyrus 4988-N3","Pear - Catillac - Scion",1,"2439"]
["Pyrus 1377-N31","Pear - Certeau d Automne - Scion",1,"2347"]
["Pyrus 4307-N08","Pear - Concorde - Scion",1,"2363"]
["Pyrus 4307-N08","Pear - Concorde - Scion",1,"2377"]
["Pyrus 4307-N08","Pear - Concorde - Scion",1,"2393"]
["Pyrus 7890-BW","Pear - Condo - Scion",1,"2490"]
["Pyrus 5492-J51","Pear - Desertnaja Rossosanskaja - Scion",1,"2486"]
["Pyrus 7891","Pear - Dessertbirne - Scion",1,"2466"]
["Pyrus 4929-I66","Pear - Deveci (Devici)- Scion",1,"2347"]
["Pyrus 4929-I66","Pear - Deveci (Devici)- Scion",1,"2466"]
["Pyrus 7053","Pear - Dicolor - Scion",4,"2341"]
["Pyrus 7053","Pear - Dicolor - Scion",1,"2347"]
["Pyrus 7053","Pear - Dicolor - Scion",2,"2366"]
["Pyrus 4957-BW00","Pear - Doyenne d Ete - Scion",1,"2346"]
["Pyrus 4957-BW00","Pear - Doyenne d Ete - Scion",1,"2363"]
["Pyrus 4957-BW00","Pear - Doyenne d Ete - Scion",1,"2393"]
["Pyrus 4547-H47","Pear - Eva Baltet - Scion",1,"2404"]
["Pyrus 4547-H47","Pear - Eva Baltet - Scion",1,"2409"]
["Pyrus 4547-H47","Pear - Eva Baltet - Scion",1,"2490"]
["Pyrus 7024-BW00","Pear - Faworytka - Scion",1,"2347"]
["Pyrus 7024-BW00","Pear - Faworytka - Scion",1,"2359"]
["Pyrus 7024-BW00","Pear - Faworytka - Scion",1,"2490"]
["Pyrus 4548-J34","Pear - Forelle - Scion",1,"2404"]
["Pyrus 7025-BW1/86","Pear - General Leclerc - Scion",1,"2409"]
["Pyrus 7025-BW1/86","Pear - General Leclerc - Scion",1,"2490"]
["Pyrus 1606-BW100","Pear - Ginn - Scion",1,"2347"]
["Pyrus 1606-BW100","Pear - Ginn - Scion",1,"2363"]
["Pyrus 1606-BW100","Pear - Ginn - Scion",2,"2413"]
["Pyrus 4278-N7","Pear - Harrow Sweet - Scion",1,"2347"]
["Pyrus 4278-N7","Pear - Harrow Sweet - Scion",1,"2356"]
["Pyrus 4278-N7","Pear - Harrow Sweet - Scion",1,"2367"]
["Pyrus 4278-N7","Pear - Harrow Sweet - Scion",1,"2485"]
["Pyrus 2261-BW92","Pear - Hendre Huff - Scion",1,"2363"]
["Pyrus 2261-BW92","Pear - Hendre Huff - Scion",2,"2392"]
["Pyrus 2261-BW92","Pear - Hendre Huff - Scion",2,"2413"]
["Pyrus 2261-BW92","Pear - Hendre Huff - Scion",2,"2447"]
["Pyrus 2261-BW92","Pear - Hendre Huff - Scion",1,"2485"]
["Pyrus 7121","Pear - Joaquina - Scion",1,"2347"]
["Pyrus 7471-BW00","Pear - Karahuseyin - Scion",1,"2346"]
["Pyrus 7471-BW00","Pear - Karahuseyin - Scion",1,"2347"]
["Pyrus 7471-BW00","Pear - Karahuseyin - Scion",1,"2359"]
["Pyrus 7471-BW00","Pear - Karahuseyin - Scion",1,"2490"]
["Pyrus 6375-000","Pear - Keiffer - Scion",1,"2346"]
["Pyrus 6375-000","Pear - Keiffer - Scion",1,"2366"]
["Pyrus 6375-000","Pear - Keiffer - Scion",1,"2490"]
["Pyrus 2370-N11","Pear - Lubecker Prinzessinbirne - Scion",1,"2359"]
["Pyrus 2370-N11","Pear - Lubecker Prinzessinbirne - Scion",1,"2374"]
["Pyrus 2370-N11","Pear - Lubecker Prinzessinbirne - Scion",1,"2384"]
["Pyrus 2370-N11","Pear - Lubecker Prinzessinbirne - Scion",1,"2404"]
["Pyrus 2370-N11","Pear - Lubecker Prinzessinbirne - Scion",1,"2475"]
["Pyrus 2370-N11","Pear - Lubecker Prinzessinbirne - Scion",1,"2490"]
["Pyrus 7585/BW1/52","Pear - Merton Pride - Scion",1,"2377"]
["Pyrus 5392-N62","Pear - Mramornaja - Scion",1,"2347"]
["Pyrus 6935-BW","Pear - Mustafa Bey - Scion",1,"2346"]
["Pyrus 6935-BW","Pear - Mustafa Bey - Scion",1,"2347"]
["Pyrus 6935-BW","Pear - Mustafa Bey - Scion",1,"2359"]
["Pyrus 4318-J41","Pear - Nobili - Scion",1,"2347"]
["Pyrus 2461-000","Pear - Old Home LARS - Scion",1,"2347"]
["Pyrus 2461-000","Pear - Old Home LARS - Scion",1,"2466"]
["Pyrus 7475-BW00","Pear - Orak (Orca) - Scion",1,"2347"]
["Pyrus 7052-BW","Pear - Paten (Patten) - Scion",4,"2341"]
["Pyrus 7052-BW","Pear - Paten (Patten) - Scion",1,"2347"]
["Pyrus 7052-BW","Pear - Paten (Patten) - Scion",1,"2366"]
["Pyrus 7906-BW","Pear - Pepi - Scion",1,"2347"]
["Pyrus 7906-BW","Pear - Pepi - Scion",1,"2359"]
["Pyrus 7906-BW","Pear - Pepi - Scion",1,"2466"]
["Pyrus 7074-BW","Pear - Pimaston Duchess - Scion",1,"2343"]
["Pyrus 7074-BW","Pear - Pimaston Duchess - Scion",1,"2374"]
["Pyrus 7074-BW","Pear - Pimaston Duchess - Scion",1,"2377"]
["Pyrus 7074-BW","Pear - Pimaston Duchess - Scion",1,"2406"]
["Pyrus 7074-BW","Pear - Pimaston Duchess - Scion",1,"2416"]
["Pyrus 7074-BW","Pear - Pimaston Duchess - Scion",1,"2429"]
["Pyrus 4958-BW103","Pear - Potatoe - Scion",1,"2347"]
["Pyrus 4958-BW103","Pear - Potatoe - Scion",1,"2392"]
["Pyrus 4958-BW103","Pear - Potatoe - Scion",2,"2413"]
["Pyrus 4320-J44","Pear - Principessa Gonzaga - Scion",1,"2409"]
["Pyrus 2463-BW96","Pear - Red - Scion",1,"2392"]
["Pyrus 6934-BW","Pear - Riza Bey - Scion",1,"2347"]
["Pyrus 6934-BW","Pear - Riza Bey - Scion",1,"2466"]
["Pyrus 5483-J52","Pear - Russkaja Krasavica - Scion",1,"2485"]
["Pyrus 5483-J52","Pear - Russkaja Krasavica - Scion",1,"2490"]
["Pyrus 2372-N12","Pear - Schweizerhose - Scion",2,"2387"]
["Pyrus 2372-N12","Pear - Schweizerhose - Scion",1,"2473"]
["Pyrus 7024-BW","Pear - Souvenir - Scion",1,"2346"]
["Pyrus 7024-BW","Pear - Souvenir - Scion",1,"2347"]
["Pyrus 1465-BW97","Pear - Taynton Squash - Scion",1,"2347"]
["Pyrus 1465-BW97","Pear - Taynton Squash - Scion",2,"2392"]
["Pyrus 1465-BW97","Pear - Taynton Squash - Scion",2,"2413"]
["Pyrus 1465-BW97","Pear - Taynton Squash - Scion",1,"2429"]
["Pyrus 1465-BW97","Pear - Taynton Squash - Scion",2,"2447"]
["Pyrus 6332-H49","Pear - Uta - Scion",1,"2346"]
["Pyrus 7587-BW","Pear - Verbelu - Scion",1,"2347"]
["Pyrus 7587-BW","Pear - Verbelu - Scion",1,"2484"]
["Pyrus 5249-000","Pear - Warren - Scion",4,"2341"]
["Pyrus 5249-000","Pear - Warren - Scion",1,"2347"]
["Pyrus 5249-000","Pear - Warren - Scion",1,"2366"]
["Pyrus 2713-N01","Pear - Williams' Bon Chretien - Scion",1,"2363"]
["Pyrus 2713-N01","Pear - Williams' Bon Chretien - Scion",1,"2367"]
["Pyrus 2713-N01","Pear - Williams' Bon Chretien - Scion",1,"2393"]
["Pyrus 2713-N01","Pear - Williams' Bon Chretien - Scion",1,"2406"]
["Pyrus 2713-N01","Pear - Williams' Bon Chretien - Scion",1,"2459"]
["Pyrus 2713-N01","Pear - Williams' Bon Chretien - Scion",1,"2475"]
["Pyrus 1603/2466-BW93","Pear - Winnals Longdon - Scion",4,"2341"]
["Pyrus 1603/2466-BW93","Pear - Winnals Longdon - Scion",2,"2392"]
["Pyrus 1603/2466-BW93","Pear - Winnals Longdon - Scion",1,"2484"]
["Diospyros 0000-00","Persimmon - Cioccolatino (chocolate) - Scions",1,"2382"]
["Diospyros 0000-00","Persimmon - Cioccolatino (chocolate) - Scions",1,"2416"]
["Diospyros 0000-00","Persimmon - Cioccolatino (chocolate) - Scions",1,"2418"]
["Diospyros 0000-00","Persimmon - Cioccolatino (chocolate) - Scions",2,"2463"]
["Diospyros 0000-00","Persimmon - Hiratanesnashi - Scions",2,"2342"]
["Diospyros 0000-00","Persimmon - Hiratanesnashi - Scions",1,"2416"]
["Diospyros 0000-00","Persimmon - Rojo Brillante - Scions",2,"2342"]
["Diospyros 0000-00","Persimmon - Rojo Brillante - Scions",1,"2382"]
["Diospyros 0000-00","Persimmon - Rojo Brillante - Scions",1,"2416"]
["Diospyros 0000-00","Persimmon - Rojo Brillante - Scions",1,"2418"]
["Prunus 2533-BW19","Plum - Anna Spath - Scion",2,"2348"]
["Prunus 2533-BW19","Plum - Anna Spath - Scion",1,"2356"]
["Prunus 2533-BW19","Plum - Anna Spath - Scion",1,"2363"]
["Prunus 2533-BW19","Plum - Anna Spath - Scion",1,"2409"]
["Prunus 1838-BW14","Plum - Apricot - Scion",1,"2373"]
["Prunus 1838-BW14","Plum - Apricot - Scion",1,"2409"]
["Prunus 4224-00","Plum - Belgian Purple - Scion",1,"2367"]
["Prunus 4303-PA8","Plum - Czar - Scion",2,"2348"]
["Prunus 4303-PA8","Plum - Czar - Scion",1,"2356"]
["Prunus 4303-PA8","Plum - Czar - Scion",1,"2363"]
["Prunus 4303-PA8","Plum - Czar - Scion",1,"2382"]
["Prunus  3579","Plum - Guinevere - Scion",1,"2325"]
["Prunus  3579","Plum - Guinevere - Scion",1,"2346"]
["Prunus  3579","Plum - Guinevere - Scion",1,"2363"]
["Prunus  3579","Plum - Guinevere - Scion",1,"2377"]
["Prunus  3579","Plum - Guinevere - Scion",1,"2404"]
["Prunus  3579","Plum - Guinevere - Scion",1,"2476"]
["Prunus 1675-PA6","Plum - Herman - Scion",1,"2340"]
["Prunus 1675-PA6","Plum - Herman - Scion",1,"2351"]
["Prunus 1675-PA6","Plum - Herman - Scion",1,"2404"]
["Prunus 1675-PA6","Plum - Herman - Scion",1,"2438"]
["Prunus 1675-PA6","Plum - Herman - Scion",1,"2475"]
["Prunus 924-O28","Plum - Mirabelle - Scion",1,"2367"]
["Prunus 924-O28","Plum - Mirabelle - Scion",1,"2377"]
["Prunus 924-O28","Plum - Mirabelle - Scion",1,"2380"]
["Prunus 924-O28","Plum - Mirabelle - Scion",1,"2404"]
["Prunus 924-O28","Plum - Mirabelle - Scion",1,"2429"]
["Prunus 924-O28","Plum - Mirabelle - Scion",1,"2438"]
["Prunus 924-O28","Plum - Mirabelle - Scion",1,"2475"]
["Prunus 4119-PA12","Plum - Opal - Scion",1,"2351"]
["Prunus 4119-PA12","Plum - Opal - Scion",1,"2359"]
["Prunus 4119-PA12","Plum - Opal - Scion",1,"2381"]
["Prunus 4119-PA12","Plum - Opal - Scion",1,"2397"]
["Prunus 4119-PA12","Plum - Opal - Scion",1,"2439"]
["Prunus 4119-PA12","Plum - Opal - Scion",1,"2459"]
["Prunus 1234-PA27","Plum - President - Scion",1,"2356"]
["Prunus 1234-PA27","Plum - President - Scion",1,"2409"]
["Prunus 1740-BW10","Plum - Reine-claude d Oullins - Scion",1,"2380"]
["Prunus  6557-BW","Plum - Swan - Scion",1,"2335"]
["Prunus  6557-BW","Plum - Swan - Scion",1,"2363"]
["Prunus  6557-BW","Plum - Swan - Scion",1,"2367"]
["Prunus 7666-BW","Plum - Sweet Amers - Scion",1,"2398"]
["Prunus 7666-BW","Plum - Sweet Amers - Scion",1,"2409"]
["Prunus 4305-PA14","Plum - Warwickshire Drooper - Scion",3,"2346"]
["Prunus 4305-PA14","Plum - Warwickshire Drooper - Scion",1,"2351"]
["Prunus 4305-PA14","Plum - Warwickshire Drooper - Scion",1,"2356"]
["Prunus 4305-PA14","Plum - Warwickshire Drooper - Scion",1,"2380"]
["Prunus 4305-PA14","Plum - Warwickshire Drooper - Scion",2,"2387"]
["Prunus 4305-PA14","Plum - Warwickshire Drooper - Scion",2,"2390"]
["Pyrus Rtsk-00","Pyrodwarf® - Pear Rootstock - Bare Rooted",2,"2458"]
["Pyrus Rtsk-00","Pyrus OHXF87™ - Pear Rootstock - Bare Rooted",1,"2374"]
["Pyrus Rtsk-00","Pyrus OHXF87™ - Pear Rootstock - Bare Rooted",3,"2377"]
["Pyrus Rtsk-00","Pyrus OHXF87™ - Pear Rootstock - Bare Rooted",5,"2418"]
["Pyrus Rtsk-00","Pyrus OHXF87™ - Pear Rootstock - Bare Rooted",2,"2424"]
["Pyrus Rtsk-00","Pyrus OHXF87™ - Pear Rootstock - Bare Rooted",40,"2458"]
["Pyrus Rtsk-00","Pyrus OHXF87™ - Pear Rootstock - Bare Rooted",3,"2464"]
["Pyrus Rtsk-00","Pyrus OHXF87™ - Pear Rootstock - Bare Rooted",2,"2473"]
["Cydonia 4940/5214-Y26","Quince - Aurelia - Scion",1,"2427"]
["Cydonia 4940/5214-Y26","Quince - Aurelia - Scion",1,"2444"]
["Cydonia 4941","Quince - Bencikli - Scion",2,"2015"]
["Cydonia 4941","Quince - Bencikli - Scion",1,"2340"]
["Cydonia 4942","Quince - Cukurgobek (Cukurgöbek) - Scion",1,"2444"]
["Cydonia 4968-Y29","Quince - Ege 22 - Scion",1,"2444"]
["Cydonia 4968-Y29","Quince - Ege 22 - Scion",1,"2483"]
["Cydonia 6061-00","Quince - Krymsk (Aromatnaya) - Scion",1,"2332"]
["Cydonia 6061-00","Quince - Krymsk (Aromatnaya) - Scion",1,"2343"]
["Cydonia 6061-00","Quince - Krymsk (Aromatnaya) - Scion",1,"2427"]
["Cydonia 6061-00","Quince - Krymsk (Aromatnaya) - Scion",1,"2439"]
["Cydonia 6061-00","Quince - Krymsk (Aromatnaya) - Scion",1,"2444"]
["Cydonia 6061-00","Quince - Krymsk (Aromatnaya) - Scion",1,"2483"]
["Cydonia 4967-Y28","Quince - Limon - Scion",1,"2340"]
["Cydonia 4967-Y28","Quince - Limon - Scion",1,"2427"]
["Cydonia 4967-Y28","Quince - Limon - Scion",1,"2439"]
["Cydonia 4967-Y28","Quince - Limon - Scion",1,"2484"]
["Cydonia 4948","Quince - Muskatnaja - Scion",1,"2340"]
["Cydonia 4948","Quince - Muskatnaja - Scion",1,"2444"]
["Cydonia 4948","Quince - Muskatnaja - Scion",2,"2466"]
["Cydonia 4948","Quince - Muskatnaja - Scion",1,"2484"]
["Cydonia bank-00","Quince - Vranja - Scion",2,"2015"]
["Cydonia 2738-00","Quince - Wudonia - Scion",1,"2343"]
["Cydonia 2738-00","Quince - Wudonia - Scion",1,"2427"]
["Cydonia Rtsk-00","Quince A - Pear Rootstock - Bare Rooted",1,"2374"]
["Cydonia Rtsk-00","Quince A - Pear Rootstock - Bare Rooted",8,"2392"]
["Cydonia Rtsk-00","Quince A - Pear Rootstock - Bare Rooted",18,"2439"]
["Cydonia Rtsk-00","Quince BA - Pear Rootstock - Bare Rooted",5,"2369"]
["Cydonia Rtsk-00","Quince C - Pear Rootstock - Bare Rooted",5,"2343"]
["Cydonia Rtsk-00","Quince C - Pear Rootstock - Bare Rooted",5,"2377"]
["Cydonia Rtsk-00","Quince C - Pear Rootstock - Bare Rooted",5,"2381"]
["Cydonia Rtsk-00","Quince C - Pear Rootstock - Bare Rooted",5,"2383"]
["Cydonia Rtsk-00","Quince C - Pear Rootstock - Bare Rooted",6,"2386"]
["Cydonia Rtsk-00","Quince C - Pear Rootstock - Bare Rooted",5,"2438"]
["Cydonia Rtsk-00","Quince C - Pear Rootstock - Bare Rooted",5,"2444"]
["Cydonia Rtsk-00","Quince C - Pear Rootstock - Bare Rooted",5,"2483"]
["Cydonia Rtsk-00","Quince C - Pear Rootstock - Bare Rooted",6,"2484"]
["Cydonia Rtsk-00","Quince 'Eline®' - Pear Rootstock - Bare Rooted",4,"2015"]
["Prunus Rtsk-00","St Julian A - Plum Rootstock - Bare Rooted",20,"2025"]
["Prunus Rtsk-00","St Julian A - Plum Rootstock - Bare Rooted",5,"2355"]
["Prunus Rtsk-00","St Julian A - Plum Rootstock - Bare Rooted",6,"2390"]
["Prunus Rtsk-00","St Julian A - Plum Rootstock - Bare Rooted",5,"2397"]
["Prunus Rtsk-00","St Julian A - Plum Rootstock - Bare Rooted",5,"2437"]
["Malus Rtsk-00","Supporter® 4 (PI80) - Apple Rootstock - Bare Rooted",5,"2329"]
["Malus Rtsk-00","Supporter® 4 (PI80) - Apple Rootstock - Bare Rooted",6,"2347"]
["Malus Rtsk-00","Supporter® 4 (PI80) - Apple Rootstock - Bare Rooted",5,"2365"]
["Malus Rtsk-00","Supporter® 4 (PI80) - Apple Rootstock - Bare Rooted",1,"2374"]
["Juglans  898-bank","Walnut - Rode Doneau - Scion",10,"2403"]
["Prunus Rtsk-00","WUR S766 - Plum (Prunus) Rootstock - Bare Rooted",1,"2335"]
["Prunus Rtsk-00","WUR S766 - Plum (Prunus) Rootstock - Bare Rooted",4,"2348"]
["Prunus Rtsk-00","WUR S766 - Plum (Prunus) Rootstock - Bare Rooted",1,"2373"]
["Prunus Rtsk-00","WUR S766 - Plum (Prunus) Rootstock - Bare Rooted",5,"2485"]